Cogmind - Beta 16 @@@ ROGUE MODE // 2025.10.26 @ 17:04:50 Player: aoemica Result: Fortifying 0b10! Performance ------------- Evolutions (9) 4500 Regions Visited (37) 7400 Robots Destroyed (502) 2510 Value Destroyed (33265) 33265 Prototype IDs (172) 3440 Alien Tech Used (0) 0 Bonus (38246) 38246 TOTAL SCORE: 89361 Bonus ------- High Alert Combat Kills 6331 Follower Combat Kills 3007 Destroyed Unchained 3000 Awakened Behemoth Slayer 1000 Entered Garrisons 400 Network Hubs Disabled 400 Met Data Miner 300 Met Imprinter 300 Acquired ECA 300 Met Warlord at Base 500 MAIN.C Attacked Warlord 500 Warlord Defense Kills 3972 Built Enhanced Grunts 300 A7 Reached Mainframe 300 Met R17 at Research 2000 Met Warlord at Research 2000 Invited to Help at Command 2000 Scanned by Researcher 500 Met MAIN.C 5000 Destroyed MAIN.C Shell 5000 Win 3000 Friendly Fire -1864 Cogmind --------- Core Integrity 1352/1600 Matter 60/300 Energy 390/390 System Corruption 5% Temperature Warm (168) Movement Hovering (33) Location By MAIN.C's Side Parts ------- > --- POWER (3) -------- Micro Antimatter Reactor Concept Zero-point Core Concept Zero-point Core > --- PROPULSION (8) --- Experimental Antigrav System Experimental Antigrav System Gravjet Array Concept Combat Aerolev Unit Concept Combat Aerolev Unit Concept Combat Aerolev Unit Concept Gyrokinetic System > --- UTILITY (11) ----- Concept Phasing Heat Sink Concept Antigrav Storage Unit Concept Weapon Articulator Experimental Core Analyzer Concept Core Analysis Suite Experimental Armor Integrity Analyzer Experimental Kinecellerator Heavy Regenerative Plating Experimental Hardlight Generator Advanced Point Defense System > --- WEAPON (3) ------- Concept Heavy Railcannon CR-A16's Behemoth Slayer > --- INVENTORY (25) --- Hybrid Graviton Reactor Zero-point Reactor Experimental Biometal Leg Experimental Biometal Leg Experimental Biometal Leg Experimental Biometal Leg Combat Linear Gravjet Combat Linear Gravjet Gravjet Array Concept Chromion Battery (800) Concept NT7 Matterbank (750) Seismic Detector Advanced Particle Charger Experimental Weapon Shielding Centrium Medium Armor Plating Graphene Brace Advanced Point Defense System Concept Matter Streamer Concept Impact Drone Bay (6/6) Transdimensional Reconstructor Subatomic Replicator Vortex Shotgun (47) Ragnarok Missile Launcher Concept Rapid Grenade Launcher Peak State ------------ > --- POWER ------------ Hybrid Graviton Reactor Concept Zero-point Core Concept Zero-point Core > --- PROPULSION ------- Experimental Antigrav System Experimental Antigrav System Gravjet Array Gravjet Array Concept Combat Aerolev Unit Concept Combat Aerolev Unit > --- UTILITY ---------- Concept Phasing Heat Sink Concept Antigrav Storage Unit Concept Weapon Articulator Concept Core Analysis Suite Advanced Reaction Control System Concept Cloak Mesh Concept Cloak Mesh Heavy Regenerative Plating Graphene Brace Experimental Force Field > --- WEAPON ----------- Concept Heavy Railcannon Advanced Remote Datajack > --- INVENTORY -------- Micro Antimatter Reactor Combat Linear Gravjet Combat Linear Gravjet Experimental Antigrav System Experimental Antigrav System Concept Combat Aerolev Unit Concept Gyrokinetic System Concept Chromion Battery Concept NT7 Matterbank Seismic Detector Experimental Kinecellerator Advanced Point Defense System Advanced Point Defense System Concept Matter Streamer Concept Impact Drone Bay Transdimensional Reconstructor Subatomic Replicator Gamma Rifle Gamma Rifle Vortex Shotgun Concept Plasma Driver 6S-H0T's Six Shooter Ragnarok Missile Launcher Concept Rapid Grenade Launcher CR-A16's Behemoth Slayer [Rating: 285] Favorites ----------- Power Light Fission Core Engine Cooled Ion Engine Power Core Light Fission Core Reactor Hybrid Graviton Reactor Propulsion Light Treads Treads Light Treads Leg Aluminum Leg Wheel Wheel Hover Unit Experimental Antigrav System Flight Unit Electron Diverter Utility Hacking Suite Device Experimental Heat Sink Storage Medium Storage Unit Processor Improved Signal Interpreter Hackware Hacking Suite Protection Heavy Regenerative Plating Weapon CR-A16's Behemoth Slayer Energy Gun Precision Beam Rifle Energy Cannon Concept Plasma Driver Ballistic Gun Subdweller Machine Gun Ballistic Cannon Tri-rail Accelerator Launcher Concept Rapid Grenade Launcher Special Weapon Advanced Remote Datajack Slashing Weapon Makeshift Axe Piercing Weapon CR-A16's Behemoth Slayer Special Melee Weapon Advanced Datajack Build | -11 -10 -10 -8 -8 -8 -8 -7 -7 -7 -7 -7 -7 -6 -6 -6 -6 -6 -5 -5 -5 -5 -5 -4 -4 -4 -4 -4 -4 -4 -4 -3 -3 -2 -2 -2 -1 -1 ------- Run | Yrd Mat Sub Mat Gar Mat Gar Fac Was Fac Low Low Zio Pro Fac Low Low Dat Pro Fac Upp Upp War Pro Fac Was Fac Ext Cet Arc Hub Res Qua Res Tes Frg Acc Com Slots Evolved 18 | . . . 4 . . . 2 . . . . . . 2 . . . . 2 . . . . 2 . . . . . . 2 . 2 . . 2 . Power 2 | . . . . . . . . . . . . . . . . . . . 1 . . . . . . . . . . . . . . . . 1 . Propulsion 6 | . . . 3 . . . . . . . . . . . . . . . 1 . . . . 1 . . . . . . . . 1 . . . . Utility 9 | . . . 1 . . . 1 . . . . . . 2 . . . . . . . . . 1 . . . . . . 2 . 1 . . 1 . Weapon 1 | . . . . . . . 1 . . . . . . . . . . . . . . . . . . . . . . . . . . . . . . Parts Attached 253 | 1 9 9 37 9 2 5 15 4 9 1 . 11 . 7 5 . 1 1 12 . 1 12 1 2 . 5 . 1 1 . 11 5 10 6 31 10 19 Power 26 | . 3 2 3 . . . 2 . 3 . . . . 1 2 . . . 1 . . . . . . 1 . . . . 1 . 1 . 4 1 1 Engine 10 | . 2 2 3 . . . 1 . 2 . . . . . . . . . . . . . . . . . . . . . . . . . . . . Core 11 | . 1 . . . . . 1 . 1 . . . . 1 2 . . . 1 . . . . . . 1 . . . . . . . . 3 . . Reactor 5 | . . . . . . . . . . . . . . . . . . . . . . . . . . . . . . . 1 . 1 . 1 1 1 Propulsion 60 | . 3 . 17 5 1 3 5 3 . . . . . . . . . . 1 . . 2 . . . . . . . . 3 2 2 . 7 2 4 Treads 26 | . 2 . 10 5 1 3 5 . . . . . . . . . . . . . . . . . . . . . . . . . . . . . . Leg 6 | . 1 . 4 . . . . . . . . . . . . . . . . . . . . . . . . . . . 1 . . . . . . Wheel 3 | . . . 3 . . . . . . . . . . . . . . . . . . . . . . . . . . . . . . . . . . Hover 12 | . . . . . . . . . . . . . . . . . . . . . . . . . . . . . . . . . . . 6 2 4 Flight 13 | . . . . . . . . 3 . . . . . . . . . . 1 . . 2 . . . . . . . . 2 2 2 . 1 . . Utility 113 | 1 1 2 7 3 1 . 5 1 6 1 . 11 . 5 1 . . 1 8 . . 4 1 2 . 3 . . . . 6 2 6 5 15 4 11 Device 53 | 1 . . 2 1 . . 2 . 3 1 . 3 . 2 . . . . 2 . . 1 1 2 . 2 . . . . 3 1 2 3 9 4 8 Storage 10 | . 1 1 . . 1 . . 1 . . . . . 1 . . . . . . . . . . . . . . . . 1 . 2 . 2 . . Processor 15 | . . . 1 . . . 1 . 1 . . . . . . . . 1 1 . . 3 . . . . . . . . 1 . . 1 3 . 2 Hackware 20 | . . . 1 2 . . . . 2 . . 8 . 1 . . . . 4 . . . . . . 1 . . . . . . 1 . . . . Protection 15 | . . 1 3 . . . 2 . . . . . . 1 1 . . . 1 . . . . . . . . . . . 1 1 1 1 1 . 1 Artifact . | . . . . . . . . . . . . . . . . . . . . . . . . . . . . . . . . . . . . . . Weapon 54 | . 2 5 10 1 . 2 3 . . . . . . 1 2 . 1 . 2 . 1 6 . . . 1 . 1 1 . 1 1 1 1 5 3 3 Energy Gun 10 | . 1 . 5 . . . . . . . . . . . . . . . . . . 1 . . . . . 1 . . . . . 1 . 1 . Energy Cannon 9 | . . 2 . . . . . . . . . . . . 1 . . . . . . 2 . . . . . . . . . 1 1 . 1 . 1 Ballistic Gun 11 | . 1 2 4 . . . 2 . . . . . . . . . . . . . . 1 . . . . . . . . . . . . . 1 . Ballistic Cannon 5 | . . . . . . . 1 . . . . . . . . . . . . . 1 . . . . 1 . . . . . . . . 1 . 1 Launcher 9 | . . . 1 1 . 1 . . . . . . . . . . . . 2 . . 1 . . . . . . . . . . . . 3 . . Special Weapon 4 | . . . . . . 1 . . . . . . . . . . . . . . . 1 . . . . . . . . . . . . . 1 1 Impact Weapon . | . . . . . . . . . . . . . . . . . . . . . . . . . . . . . . . . . . . . . . Slashing Weapon 1 | . . . . . . . . . . . . . . . 1 . . . . . . . . . . . . . . . . . . . . . . Piercing Weapon 4 | . . 1 . . . . . . . . . . . 1 . . 1 . . . . . . . . . . . . . 1 . . . . . . Special Melee Weapon 1 | . . . . . . . . . . . . . . . . . . . . . . . . . . . . . 1 . . . . . . . . Unidentified Prototypes 31 | . . . 4 . . 1 1 1 . . . 1 . . . . . . . . . 8 . . . . . 1 . . 3 . 3 3 3 1 1 Corrupted Parts 1 | . . . . . . . . . . . . 1 . . . . . . . . . . . . . . . . . . . . . . . . . System Corruption 1 | . . . . . . . . . . . . 1 . . . . . . . . . . . . . . . . . . . . . . . . . Parts Lost 35 | . 2 1 6 4 . 1 4 . . . . . . 1 . . . . . . . 1 . . . . . . . . . . . 2 6 . 7 Power 5 | . 1 . . . . . 1 . . . . . . 1 . . . . . . . . . . . . . . . . . . . . 2 . . Propulsion 13 | . . . 3 4 . 1 3 . . . . . . . . . . . . . . . . . . . . . . . . . . . . . 2 Utility 14 | . 1 1 2 . . . . . . . . . . . . . . . . . . 1 . . . . . . . . . . . 2 4 . 3 Weapon 3 | . . . 1 . . . . . . . . . . . . . . . . . . . . . . . . . . . . . . . . . 2 Highest Loss Streak 4 | . 1 1 2 3 . 1 1 . . . . . . 1 . . . . . . . 1 . . . . . . . . . . . 1 2 . 4 To Critical Strikes . | . . . . . . . . . . . . . . . . . . . . . . . . . . . . . . . . . . . . . . Average Backups 13 | 6 8 10 15 16 17 20 20 13 14 15 15 13 14 10 9 10 7 10 9 9 8 4 9 10 10 9 9 9 9 9 8 8 12 13 18 21 23 Power . | 1 . . 2 1 1 1 . . 1 1 1 . 1 . 1 1 1 1 . 1 1 . 1 1 1 . . . . . . 1 1 1 1 . 1 Propulsion 2 | 4 3 3 3 3 3 3 4 3 2 2 2 1 2 2 2 2 2 2 1 1 1 2 2 1 1 1 2 2 2 2 2 1 1 3 4 5 5 Utility 5 | . 2 2 4 5 5 6 8 6 6 7 7 7 6 4 5 5 2 5 5 5 5 1 4 4 5 4 5 5 5 5 3 3 5 6 5 7 8 Weapon 4 | 1 2 4 6 7 7 8 7 3 3 4 4 3 4 2 1 2 2 2 2 2 1 . 2 3 3 2 2 2 2 2 2 1 3 2 4 6 5 Tool/Special . | . . . . . . . . . . . . . . . . . . . . . . . . . . . . . . . . . . . . . . Unused Backups 83 | . 4 3 13 1 . 2 6 4 2 . . 6 . 1 . . . . 4 . . 1 . 2 . 2 . . . . 5 1 1 4 6 1 14 Power 7 | . 1 . 2 . . . . . . . . . . . . . . . . . . . . . . . . . . . . . 1 . 2 . 1 Propulsion 25 | . 2 . 3 . . . 2 . 1 . . . . 1 . . . . 1 . . . . . . . . . . . 3 . . 3 3 . 6 Utility 31 | . 1 . 2 1 . 1 3 3 1 . . 6 . . . . . . 1 . . . . 2 . 2 . . . . 2 . . 1 1 1 3 Weapon 17 | . . 3 6 . . 1 1 1 . . . . . . . . . . 2 . . 1 . . . . . . . . . . . . . . 2 Tool/Special 3 | . . . . . . . . . . . . . . . . . . . . . . . . . . . . . . . . 1 . . . . 2 Average Slot Usage (%) 85 | . 91 95 94 99 100 100 99 55 59 67 68 67 67 71 74 77 76 77 79 80 80 77 80 80 81 80 81 80 80 81 82 83 85 85 81 83 87 Engine 3 | . 12 14 9 9 9 9 6 . 3 . . . . . . . . . . . . . . . . . . . . . . . . . . . . Core 5 | . 1 . . . . . . 6 2 6 6 6 6 4 5 5 5 5 10 10 10 9 10 9 9 9 9 9 9 9 7 8 7 8 7 8 8 Treads 11 | . 17 28 29 44 45 45 37 6 . . . . . . . . . . . . . . . . . . . . . . . . . . . . . Leg 1 | . 10 . 9 . . . . . . . . . . . . . . . . . . . . . . . . . . . . . . . . . . Hover 2 | . . . . . . . . . . . . . . . . . . . . . . . . . . . . . . . . . . . 16 24 24 Flight 8 | . . . . . . . . 10 12 12 12 12 12 11 11 11 11 11 14 15 15 14 15 17 18 18 18 18 18 18 15 16 26 26 9 . . Device 10 | . 6 . 2 8 9 9 12 . 7 5 6 5 5 5 5 5 5 5 5 10 10 12 10 12 13 12 13 13 13 13 11 12 13 14 22 25 24 Storage 6 | . 14 14 9 9 9 9 7 7 6 6 6 6 6 5 5 5 5 5 5 5 5 2 5 4 4 4 4 4 4 4 4 4 4 4 4 6 4 Processor 7 | . . . 4 7 . . 2 6 9 12 12 12 12 11 11 11 11 11 10 10 10 13 15 13 13 13 13 13 13 13 15 15 13 13 4 4 6 Hackware 8 | . . . 1 1 9 9 7 6 9 18 18 18 18 21 22 22 22 22 21 20 20 16 15 13 13 13 13 13 13 13 12 11 7 6 1 . . Protection 2 | . . 9 5 . . . . . . . . . . 4 5 5 5 4 2 . . . . . . . . . . . 3 4 4 4 5 4 4 Energy Gun 3 | . 14 1 4 17 18 17 15 . . . . . . . . . . . . . . . . . . . . . . . . . . . . . . Energy Cannon 1 | . . 10 . . . . . . . . . . . . . . . . 2 . . . . . . . . . . . . . . . 1 3 3 Ballistic Gun 2 | . 14 15 9 . . . 2 1 . . . . . . . . . . . . . 1 . . . . . . . . . . . . . . . Ballistic Cannon 1 | . . . . . . . . . . . . . . . . . . . . . . 1 5 4 4 4 4 3 4 4 3 4 4 3 3 . . Piercing Weapon 3 | . . 1 3 . . . 3 6 5 6 6 6 5 5 5 5 4 4 2 5 5 1 5 4 4 4 4 3 1 4 4 4 3 4 2 3 3 Peak Build Rating 285 | 7 10 16 34 35 31 33 45 66 72 72 72 83 73 89 94 94 93 95 113 109 113 140 140 150 150 151 150 149 149 149 171 169 182 184 281 278 285 Average Rating 107 | 6 7 10 27 33 30 31 39 57 66 71 72 72 72 83 90 93 91 93 107 109 109 123 138 148 149 149 149 147 147 149 165 165 176 177 226 268 274 On Entrance 103 | 6 7 7 16 34 30 31 32 43 61 72 72 72 73 73 88 93 93 93 94 109 109 109 139 139 150 150 149 149 149 149 149 166 155 179 169 260 278 Avg Prop Armor Cover (%) 17 | . . . 17 . . 6 . . . . . . . . . . 32 . . . . . . . . 27 . . . . . . . . . . . Naked Turns . | . . . . . . . . . . . . . . . . . . . . . . . . . . . . . . . . . . . . . . Heaviest Build 137 | 12 17 51 69 55 94 96 116 97 31 29 29 29 30 29 31 32 27 30 36 30 30 42 40 44 44 45 44 44 44 44 55 51 63 64 137 128 131 Greatest Support 132 | 20 40 40 102 102 100 100 100 100 30 30 30 30 30 30 30 30 30 30 36 36 36 40 40 46 46 46 46 46 46 46 47 54 65 69 128 128 132 Greatest Overweight (x) 6 | . 1 1 6 . . 1 1 . 1 . . . . . 1 1 4 . . . . 1 . . . 2 . . . . 1 . 1 . 1 . 1 Average Overweight (x) . | . . . 2 . . . . . . . . . . . . . . . . . . . . . . . . . . . . . . . . . . Largest Inventory Capacity 25 | 8 10 20 20 20 25 25 25 25 15 15 15 15 15 15 10 10 10 10 10 10 10 10 10 10 10 10 10 10 10 10 10 10 15 15 25 25 25 Average Capacity 15 | 8 9 10 20 20 20 25 25 16 15 15 15 15 15 10 10 10 10 10 10 10 10 6 10 10 10 10 10 10 10 10 10 10 14 15 21 25 25 Most Carried 25 | 6 10 15 20 20 21 25 25 25 15 15 15 15 15 15 10 10 10 10 10 10 10 10 10 10 10 10 10 10 10 10 10 10 15 15 25 25 25 Average Carried 14 | 6 8 10 18 19 20 23 24 13 14 15 15 13 14 10 9 10 7 10 9 10 9 4 9 9 10 9 10 10 10 10 9 9 13 14 20 24 24 Final Capacity 25 | 8 10 20 20 20 25 25 25 15 15 15 15 15 15 10 10 10 10 10 10 10 10 10 10 10 10 10 10 10 10 10 10 10 15 15 25 25 25 Final Carried 25 | 6 9 15 20 20 21 25 25 12 15 15 15 15 15 10 10 10 10 10 10 10 10 10 10 10 10 10 10 10 10 10 10 10 15 15 25 25 25 Class Distribution -------------------- 34% | Hacker-Scout 18% | Scavenger-Mutant 15% | Mutant 10% | Sprinter 5% | Commander-Scout 3% | Hacker-Sprinter 3% | Scavenger-Gunner 3% | Hacker-Ninja Dominant Class ---------------- Mutant | -10/Materials Mutant | -10/Subcaves Scavenger-Mutant | -8/Materials Scavenger-Mutant | -8/Garrison Scavenger-Mutant | -8/Materials Scavenger-Mutant | -8/Garrison Scavenger-Mutant | -7/Factory Mutant | -7/Waste Mutant | -7/Factory Hacker-Scout | -7/Lower Caves Hacker-Scout | -7/Lower Caves Hacker-Scout | -7/Zion Hacker-Scout | -6/Proximity Caves Hacker-Scout | -6/Factory Hacker-Scout | -6/Lower Caves Hacker-Scout | -6/Lower Caves Hacker-Scout | -6/Data Miner Hacker-Scout | -5/Proximity Caves Hacker-Scout | -5/Factory Hacker-Ninja | -5/Upper Caves Hacker-Ninja | -5/Upper Caves Hacker-Scout | -5/Warlord Hacker-Scout | -4/Proximity Caves Hacker-Scout | -4/Factory Hacker-Sprinter | -4/Waste Hacker-Scout | -4/Factory Commander-Scout | -4/Extension Commander-Scout | -4/Cetus Commander-Scout | -4/Archives Commander-Scout | -4/Hub_04(d) Hacker-Scout | -3/Research Hacker-Scout | -3/Quarantine Hacker-Scout | -2/Research Hacker-Scout | -2/Testing Sprinter | -2/Protoforge Sprinter | -1/Access Sprinter | -1/Command Resources | -11 -10 -10 -8 -8 -8 -8 -7 -7 -7 -7 -7 -7 -6 -6 -6 -6 -6 -5 -5 -5 -5 -5 -4 -4 -4 -4 -4 -4 -4 -4 -3 -3 -2 -2 -2 -1 -1 ----------- Run | Yrd Mat Sub Mat Gar Mat Gar Fac Was Fac Low Low Zio Pro Fac Low Low Dat Pro Fac Upp Upp War Pro Fac Was Fac Ext Cet Arc Hub Res Qua Res Tes Frg Acc Com Matter Collected 14902 | 214 158 116 934 354 . 190 702 . 276 31 . 73 140 120 60 20 . 120 230 78 28 364 446 140 . 336 249 82 108 28 862 388 1087 377 4067 921 1603 Remotely 288 | . . . . . . . . . . . . . . . . . . . . . . . . . . . . . . . . . . . 288 . . Salvage Created 22790 | 21 626 224 1752 964 . 242 1320 . 141 70 . . 55 291 100 . . 99 1090 100 . 861 679 476 . 971 530 200 53 43 1598 594 801 407 2942 2462 3078 Parts 998 | 6 43 14 100 52 . 17 62 . 14 1 . . 2 15 4 . . 9 49 4 . 43 30 19 . 44 19 7 . 2 46 24 20 18 116 104 114 Haulers Intercepted 22 | . 2 . 5 . . . 1 . 1 . . . . . . . . . 4 . . . 1 1 . 1 . . . . 2 . 2 . . 2 . Recyclers Shooed 16 | 1 5 . . . . . 4 . . . . . . . . . . . 2 . . . . 1 . . . . . . 1 1 . . . 1 . Parts Field Recycled . | . . . . . . . . . . . . . . . . . . . . . . . . . . . . . . . . . . . . . . Retrieved Matter . | . . . . . . . . . . . . . . . . . . . . . . . . . . . . . . . . . . . . . . Parts Self-Destructed 55 | . . 5 . . . . . . . . . . 1 . 4 2 . 8 . 4 . . 31 . . . . . . . . . . . . . . Prevented . | . . . . . . . . . . . . . . . . . . . . . . . . . . . . . . . . . . . . . . Parts Restored 8 | . . . . . . . . . . . . . . . . . . . . . . . . . . . . . . . . . . . 7 1 . Faulty 8 | . . . . . . . . . . . . . . . . . . . . . . . . . . . . . . . . . . . 7 1 . Kills | -11 -10 -10 -8 -8 -8 -8 -7 -7 -7 -7 -7 -7 -6 -6 -6 -6 -6 -5 -5 -5 -5 -5 -4 -4 -4 -4 -4 -4 -4 -4 -3 -3 -2 -2 -2 -1 -1 ------- Run | Yrd Mat Sub Mat Gar Mat Gar Fac Was Fac Low Low Zio Pro Fac Low Low Dat Pro Fac Upp Upp War Pro Fac Was Fac Ext Cet Arc Hub Res Qua Res Tes Frg Acc Com Combat Hostiles Destroyed 365 | . 10 6 34 30 . 8 21 . . . . . . 2 1 . . 2 4 1 . 35 11 5 . 3 9 5 1 . 23 . 9 5 69 31 40 Melee 20 | . . . 12 . . . . . . . . . . 1 . . . 1 . . . . . . . 1 . . . . 1 . . 1 3 . . Guns 76 | . 10 2 18 21 . 6 17 . . . . . . . . . . . . . . 1 . . . . . . . . . . . 1 . . . Cannons 140 | . . 4 . . . . . . . . . . . . . . . . . . . 3 10 5 . . 8 5 1 . 20 . 7 3 32 18 24 AOE 96 | . . . 4 6 . 2 2 . . . . . . . . . . . 2 . . 31 . . . . . . . . . . . . 29 11 9 Classes Destroyed 32 | 1 6 2 3 1 . 1 2 . . . . . 1 1 . . . 1 . . . 4 . . . . . . . . 2 1 . . 4 1 1 Worker 27 | . 1 . 4 . . . 2 . 2 . . . . . . . . . 9 . . . . 2 . 1 . . . . . 4 . . 2 . . Builder 11 | . . . . . . . 2 . . . . . . . . . . . 4 . . . . . . . . . . . . 1 . 3 1 . . Tunneler 11 | 1 3 . 3 . . . 1 . . . . . . . . . . . 1 . . . . . . . . . . . . . . . . 2 . Hauler 22 | . 2 . 5 . . . 1 . 1 . . . . . . . . . 4 . . . 1 1 . 1 . . . . 2 . 2 . . 2 . Recycler 15 | . 2 . . . . . 1 . . . . . . 1 . . . . . . . . . . . 4 . . . . . 3 . 1 . 2 1 Mechanic 3 | . . . 1 . . . . . . . . . . . . . . . . . . 1 . . . . . . . . . 1 . . . . . Operator 16 | . 1 . 1 . . . 1 . 2 . . . . . . . . . . . . . . 2 . 1 . . . . 1 1 . . . 2 4 Drone 14 | . . . . . . . . . . . . . . . . . . 1 . . . . . . . 1 . . . . . . . . 7 5 . Watcher 27 | . . . 2 1 . . 1 . 1 . . . . 1 . . . . 3 . . . . 2 . 3 . . . 1 1 3 3 . . 4 1 Swarmer 34 | . 3 . 5 14 . 2 1 . . . . . . . . . . . . . . 8 . 1 . . . . . . . . . . . . . Cutter 1 | . . . . . . 1 . . . . . . . . . . . . . . . . . . . . . . . . . . . . . . . Saboteur 1 | . . . . . . . . . . . . . . . . . . . . . . . . . . . . . . . . . . . 1 . . Grunt 119 | . 7 1 21 10 . 4 14 . . . . . . . . . . . 3 . . 11 8 3 . . 1 . . . 9 . 3 . 15 5 4 Brawler 3 | . . . . . . . . . . . . . . . . . . . . . . 1 . 1 . . . . . . . . . . . 1 . Duelist 3 | . . . . . . . . . . . . . . . . . . . . . . 1 . . . . . . . . . . . . . 2 . Protector 7 | . . . . . . . 1 . . . . . . . . . . . . . . 3 . . . . . . . . . . . . 2 1 . Researcher 6 | . . . . . . . . . . . . . . . . . . . . . . . . . . . . . . . . 2 . . 4 . . Sentry 45 | . . 1 7 4 . . 3 . . . . . . . . . . . . . . . 1 . . . 7 . 1 . 2 . 1 . 11 3 4 Demolisher 5 | . . . . . . . . . . . . . . . . . . . . . . 5 . . . . . . . . . . . . . . . Specialist 1 | . . . . . . . . . . . . . . . . . . . . . . 1 . . . . . . . . . . . . . . . Hunter 18 | . . . 1 . . . . . . . . . . . . . . . . . . 2 . . . . . . . . 2 . 2 . 2 5 4 Programmer 39 | . . . . 2 . 1 3 . . . . . . 1 . . . . . . . 1 1 . . . . . . . 2 . . 2 9 7 10 Heavy 1 | . . . . . . . . . . . . . . . . . . . . . . . . . . . . . . . . . . . . . 1 Q-Series 2 | . . . . . . . . . . . . . . . . . . . . . . . . . . . . . . . . . . . . 2 . Behemoth 15 | . . . . . . . . . . . . . . 1 1 . . 1 1 1 . . 1 . . 2 1 . . . 2 . 3 . 1 . . Cetus Guard 5 | . . . . . . . . . . . . . . . . . . . . . . . . . . . . 5 . . . . . . . . . S7 Guard 1 | . . . . . . . . . . . . . . . . . . . . . . . . . . . . . . . . . . 1 . . . Enhanced Q-Series 16 | . . . . . . . . . . . . . . . . . . . . . . . . . . . . . . . . . . . . . 16 Hotshot 4 | . . . . . . . . . . . . . . . . . . . . . . . . . . . . . . . . . . . 4 . . Decapitator 12 | . . . . . . . . . . . . . . . . . . . . . . . . . . . . . . . . . . . 12 . . Immortal 2 | . . . . . . . . . . . . . . . . . . . . . . . . . . . . . . . . . . . 2 . . Striker 4 | . . . . . . . . . . . . . . . . . . . . . . . . . . . . . . . 4 . . . . . . Executioner 3 | . . . . . . . . . . . . . . . . . . . . . . 2 . . . . . . . . . . . . . . 1 Alpha 7 2 | . . . . . . . . . . . . . . . . . . . . . . . . . . . . . . . . . . . 2 . . V-Series 1 | . . . . . . . . . . . . . . . . . . . . . . . . . . . . . . . . . . . 1 . . Subdweller 4 | . . 4 . . . . . . . . . . . . . . . . . . . . . . . . . . . . . . . . . . . Tinkerer 1 | . . . . . . . . . . . . . . . . . . . . . . . . . . . . . . . . . . . 1 . . Butcher 1 | . . . . . . . . . . . . . 1 . . . . . . . . . . . . . . . . . . . . . . . . Revision 3 | . . . . . . . . . . . . . . . . . . . . . . . . . . . . . . . 3 . . . . . . Best Kill Streak 15 | 1 3 2 5 5 . 2 4 . 1 . . . . 1 1 . . 1 13 1 . 15 3 5 . 4 2 3 1 1 5 7 3 2 15 8 4 Combat Bots Only 15 | . 3 2 4 5 . 2 3 . . . . . . 1 1 . . 1 3 1 . 15 3 3 . 1 2 3 1 . 5 . 3 2 15 8 4 Max Kills in Single Turn 8 | 1 1 1 2 2 . 2 4 . 1 . . . 1 1 1 . . 1 4 1 . 6 2 2 . 1 1 1 1 1 2 2 1 1 8 3 2 Gunslinging . | . . . . . . . . . . . . . . . . . . . . . . . . . . . . . . . . . . . . . . Exploded 8 | . . . 2 2 . 2 2 . . . . . . . . . . . 2 . . 6 . . . . . . . . . . . . 8 3 2 Melee 1 | . . . 1 . . . . . . . . . . 1 . . . 1 . . . . . . . 1 . . . . 1 . . 1 1 . . Uniques/NPCs Destroyed 4 | . . . . . . . . . . . . . . . . . . . . . . . . . . . . . . . . . . 2 . 1 1 CL-0N3 (-2/Testing) DW-4LL (-2/Testing) 6S-H0T (-1/Access) MAIN.C Shell (-1/Command) Combat | -11 -10 -10 -8 -8 -8 -8 -7 -7 -7 -7 -7 -7 -6 -6 -6 -6 -6 -5 -5 -5 -5 -5 -4 -4 -4 -4 -4 -4 -4 -4 -3 -3 -2 -2 -2 -1 -1 -------- Run | Yrd Mat Sub Mat Gar Mat Gar Fac Was Fac Low Low Zio Pro Fac Low Low Dat Pro Fac Upp Upp War Pro Fac Was Fac Ext Cet Arc Hub Res Qua Res Tes Frg Acc Com Hostile Shots Fired 1476 | . 79 32 166 126 . 30 173 . 38 4 9 . 12 47 . 1 5 8 10 7 . 6 4 5 . 70 8 1 . 27 10 10 3 58 172 95 260 Missed 570 | . 17 10 38 34 . 7 62 . 22 2 4 . 4 20 . 1 3 4 4 6 . 3 2 3 . 29 6 . . 17 4 5 2 34 68 38 121 Intercepted 8 | . . . . . . . . . . . . . . . . . . . . . . . . . . . . . . . . . . . . . 8 Hits 906 | . 62 22 128 92 . 23 111 . 16 2 5 . 8 27 . . 2 4 6 1 . 3 2 2 . 41 2 1 . 10 6 5 1 24 104 57 139 Melee 7 | . . . . . . . . . . . . . . . . . . . . . . . . . . . . . . . 1 . . . 6 . . Projectile 899 | . 62 22 128 92 . 23 111 . 16 2 5 . 8 27 . . 2 4 6 1 . 3 2 2 . 41 2 1 . 10 5 5 1 24 98 57 139 AOE 22 | . . . . . . 2 . . . . . . . . . . . . . . . 1 . . . . . . . . . . 1 . 5 1 12 Critical Strikes 40 | . 1 1 7 1 . . 4 . . . . . . 1 . . . . . . . 1 . . . 3 . . . . . 1 . 1 9 3 7 Actively Blocked 16 | . . . . . . . . . . . . . . . . . . . . . . . . . . . . . . . . 1 . . 6 3 6 Part Disruptions 8 | . . . . . . 1 . . . . . . . . . . 1 . . . . . . . . 1 . . . . . . . . . . 5 Damage Taken 15343 | . 578 419 1944 1283 44 365 1267 . 207 . 40 . 129 623 . . 89 98 110 18 . 121 43 31 . 699 155 14 . 132 163 119 45 351 2494 723 3039 Core 1428 | . 143 64 220 86 . 40 88 . . . . . 19 61 . . . 20 . 18 . 34 19 . . 52 58 . . . . . 15 8 235 13 235 Absorbed by Shields 3394 | . . . . 9 . . . . . . . . . . . . . . . . . 7 . . . . 12 14 . . . . . . 869 744 1739 Redirected to Shielding 161 | . . . . . . . . . . . . . . . . . . . . . . . . . . . . . . . 79 82 . . . . . Ignored by Resistances 8 | . . . . . . . 8 . . . . . . . . . . . . . . . . . . . . . . . . . . . . . . Regen/Repaired (Parts) 2227 | . . . 181 . . . 105 . . . . . . . . . . . . . . . . . . . . . . . 213 . . 188 466 365 709 Core Remaining (%) 77 | 100 . 17 . . . 37 . . . . . . 84 . . . . 90 . . . . 92 . . . . . . 90 . 100 . . 82 . 84 Volleys Fired 1195 | 4 75 23 74 94 1 34 84 . 1 . . . 3 . 16 4 . 4 14 . 1 37 44 24 2 9 25 19 3 . 67 35 40 26 186 90 156 Largest 3 | 2 2 2 2 2 2 2 3 . 1 . . . 1 . 1 1 . 1 1 . 1 1 1 1 1 1 1 1 1 . 1 1 2 1 2 1 1 Hottest 250 | 60 70 80 116 122 122 116 177 . 33 . . . 33 . 85 85 . 85 85 . 60 60 60 60 39 60 60 240 60 . 60 60 180 60 250 140 140 Shots Fired 1552 | 7 148 28 139 161 2 55 198 . 1 . . . 3 . 16 4 . 4 14 . 1 37 44 24 2 10 25 19 3 . 67 36 41 26 192 90 155 Gun 707 | 7 148 12 134 157 2 52 185 . . . . . . . . . . . . . . 6 . . . . . 1 . . . . . 3 . . . Cannon 767 | . . 16 . . . . 7 . . . . . . . 16 4 . 4 12 . 1 16 44 24 . 10 25 18 3 . 66 36 41 23 178 83 140 Launcher 71 | . . . 5 4 . 2 6 . 1 . . . 3 . . . . . 2 . . 10 . . 2 . . . . . 1 . . . 14 7 14 Special 7 | . . . . . . 1 . . . . . . . . . . . . . . . 5 . . . . . . . . . . . . . . 1 Kinetic 722 | 4 75 11 107 . . . 28 . . . . . . . . . . . . . 1 22 44 24 . 10 25 18 3 . 66 36 40 23 145 . 40 Thermal 745 | . 67 17 32 157 2 52 164 . . . . . . . 16 4 . 4 12 . . . . . . . . 1 . . . . 1 . 33 83 100 Explosive 53 | . . . . 4 . 2 3 . 1 . . . 3 . . . . . 2 . . . . . 2 . . . . . 1 . . . 14 7 14 Electromagnetic 12 | 3 6 . . . . . 3 . . . . . . . . . . . . . . . . . . . . . . . . . . . . . . Entropic 13 | . . . . . . . . . . . . . . . . . . . . . . 10 . . . . . . . . . . . 3 . . . Robot Hit Streak 33 | 1 17 9 13 24 26 32 23 . . . . . . . . . . . 2 . . 24 6 9 . 3 13 15 19 . 13 17 11 16 19 15 33 Robot Miss Streak 5 | 4 4 2 3 2 . 2 4 . . . . . . . . . . . 1 . . 1 5 2 . 3 2 2 1 . 3 3 2 3 2 3 1 Penetration Max 2 | . . . . . . . . . . . . . . . . . . . . . . . . . . . . . . . . . . . 1 1 2 Secondary Targets 8 | . . 1 3 3 . 1 . . . . . . . . . . . . . . . . . . . . . . . . . . . . . . . Max Gunslinging Chain 1 | . . 1 1 1 . 1 . . . . . . . . . . . . . . . . . . . . . . . . . . . . . . . Shots Hit Robots 1149 | 1 100 23 139 108 2 26 131 . 9 3 . . . 13 1 . 1 3 22 1 . 29 33 22 . 14 21 17 4 2 69 28 40 23 99 55 110 Core Hits 945 | 1 35 6 80 45 1 15 62 . 3 1 . . 4 5 . . . . 65 . . 70 24 23 3 13 23 23 3 1 60 22 33 21 169 54 80 Critical Kills 14 | . . . . . . . . . . . . . . . . . . . . . . . . . . . . . . . . . . . 4 4 6 Critical Parts Destroyed 1 | . . . 1 . . . . . . . . . . . . . . . . . . . . . . . . . . . . . . . . . . Critical Strikes 121 | . 8 . 8 11 . 4 15 . . . . . . 1 . . . . 4 . . 2 2 3 . 3 3 1 . 1 6 1 2 4 22 6 14 Burn 38 | . 8 . 1 11 . 4 14 . . . . . . . . . . . . . . . . . . . . . . . . . . . . . . Meltdown 14 | . . . . . . . . . . . . . . . . . . . . . . . . . . . . . . . . . . . 4 4 6 Destroy 1 | . . . 1 . . . . . . . . . . . . . . . . . . . . . . . . . . . . . . . . . . Blast 37 | . . . . . . . . . . . . . . . . . . . . . . 2 2 2 . . 3 1 . . 4 . 2 1 12 . 8 Sever 2 | . . . . . . . . . . . . . . . . . . . 2 . . . . . . . . . . . . . . . . . . Impale 29 | . . . 6 . . . 1 . . . . . . 1 . . . . 2 . . . . 1 . 3 . . . 1 2 1 . 3 6 2 . Melee Attacks 655 | . . 5 46 6 . 2 50 3 33 7 3 . 14 34 15 3 38 23 71 4 14 . 18 12 . 24 1 . 1 7 23 36 37 45 35 27 18 Impact . | . . . . . . . . . . . . . . . . . . . . . . . . . . . . . . . . . . . . . . Slashing 102 | . . . . . . . . . . . . . . . 3 3 34 7 51 1 3 . . . . . . . . . . . . . . . . Piercing 552 | . . 5 46 6 . 2 50 3 33 7 3 . 14 34 12 . 4 16 20 3 11 . 18 12 . 24 1 . . 7 23 36 37 45 35 27 18 Sneak Attacks 65 | . . . 2 . . 1 3 . 4 . . . . 2 1 . 1 . 12 1 . . 2 2 . 7 . . 1 . 6 4 3 3 7 1 2 Combat Hostiles 9 | . . . . . . . . . . . . . . 1 1 . . . 1 1 . . 1 . . 1 . . . . 2 . 1 . . . . Follow-up Attacks 2 | . . . . . . . . . . . . . . . . . . 2 . . . . . . . . . . . . . . . . . . . Damage Inflicted 81399 | 15 1130 531 3609 2245 35 793 3353 . 474 173 . . 246 531 . . 90 102 2499 . . 9469 1686 1313 180 830 1494 1085 194 107 3942 1639 2267 1459 16602 7474 15832 Guns 8516 | 15 1088 165 2207 1802 35 452 2507 . . . . . . . . . . . . . . 79 . . . . . . . . . . . 166 . . . Cannons 42356 | . . 366 . . . . . . . . . . . . . . . . 34 . . 1146 1558 1136 . 233 1494 1085 194 . 3494 1058 1805 1052 10302 5480 11919 Explosions 22232 | . . . 425 443 . 285 606 . 33 . . . 246 . . . . . 1071 . . 8244 . . 180 . . . . . . . . . 5121 1894 3684 Melee 8204 | . . . 939 . . 56 229 . 441 173 . . . 531 . . 90 102 1394 . . . 128 177 . 597 . . . 107 448 581 462 241 1179 100 229 Ramming 91 | . 42 . 38 . . . 11 . . . . . . . . . . . . . . . . . . . . . . . . . . . . . . Kinetic 30837 | . 413 165 2248 . . . 350 . . . . . . . . . . . . . . 1225 1558 1136 . 233 1494 1085 194 . 3494 1058 1805 1052 8542 . 4785 Thermal 20305 | . 592 366 384 1802 35 452 2266 . . . . . . . . . . . 34 . . . . . . . . . . . . . . . 1760 5480 7134 Explosive 12122 | . . . . 443 . 285 136 . 33 . . . 246 . . . . . 100 . . . . . 180 . . . . . . . . . 5121 1894 3684 Electromagnetic 1430 | 15 83 . . . . . 361 . . . . . . . . . . . 971 . . . . . . . . . . . . . . . . . . Impact . | . . . . . . . . . . . . . . . . . . . . . . . . . . . . . . . . . . . . . . Slashing 900 | . . . . . . . . . . . . . . . . . . 41 859 . . . . . . . . . . . . . . . . . . Piercing 7304 | . . . 939 . . 56 229 . 441 173 . . . 531 . . 90 61 535 . . . 128 177 . 597 . . . 107 448 581 462 241 1179 100 229 Entropic 8410 | . . . . . . . . . . . . . . . . . . . . . . 8244 . . . . . . . . . . . 166 . . . Highest Corruption 33 | . . . . . . 2 3 9 9 1 1 1 . . . . . . . . . . 1 . 10 10 . . . . . 3 . 3 33 4 7 Average Corruption 6 | . . . . . . 1 2 8 4 1 1 1 . . . . . . . . . . 1 . 10 8 . . . . . 2 . 3 17 3 3 Corruption Purged 36 | . . . . . . . . . 9 . . . . . . . . . . . . . . . . 16 . . . . . . . . . . 11 Corruption Blocked . | . . . . . . . . . . . . . . . . . . . . . . . . . . . . . . . . . . . . . . Effects 180 | . . . . . . 9 10 2 16 2 3 . . . . . . . . . . . 2 . 2 15 . . . . . 8 . 9 67 10 25 Message Errors 53 | . . . . . . 3 3 1 3 2 1 . . . . . . . . . . . 1 . . 5 . . . . . 2 . . 25 3 4 Matter Fused 42 | . . . . . . 3 3 . 3 . . . . . . . . . . . . . 1 . 2 2 . . . . . 1 . 4 10 3 10 Heat Flow Errors 23 | . . . . . . . . . 4 . 1 . . . . . . . . . . . . . . 4 . . . . . 1 . 3 8 1 1 Energy Discharges 14 | . . . . . . 1 2 . 2 . 1 . . . . . . . . . . . . . . 1 . . . . . 2 . . 2 2 1 Parts Rejected 3 | . . . . . . . . . 1 . . . . . . . . . . . . . . . . . . . . . . . . . . . 2 Parts Fused 1 | . . . . . . . . . . . . . . . . . . . . . . . . . . . . . . . . . . . . . 1 Data Loss (minor) 21 | . . . . . . 2 1 1 3 . . . . . . . . . . . . . . . . 2 . . . . . 1 . 2 6 1 2 Data Loss (major) 3 | . . . . . . . . . . . . . . . . . . . . . . . . . . . . . . . . . . . 3 . . Misfires 4 | . . . . . . . . . . . . . . . . . . . . . . . . . . 1 . . . . . 1 . . 1 . 1 Alerts 3 | . . . . . . . 1 . . . . . . . . . . . . . . . . . . . . . . . . . . . 1 . 1 Misdirections 2 | . . . . . . . . . . . . . . . . . . . . . . . . . . . . . . . . . . . 2 . . Weapon Failures 11 | . . . . . . . . . . . . . . . . . . . . . . . . . . . . . . . . . . . 9 . 2 Overload Shots 1 | . . . . . . . . . . . . . . . . . . . . . . . . . . . . 1 . . . . . . . . . Overflow Damage 5404 | . . . 43 18 . 1 . . 74 92 . . . . . . . 42 152 . . 334 14 162 . 245 1 . . . 121 150 95 295 1228 1200 1137 Projectiles 3130 | . . . . . . . . . . . . . . . . . . . . . . 29 14 . . . 1 . . . 23 49 8 19 749 1166 1072 Explosions 550 | . . . 25 18 . 1 . . . . . . . . . . . . . . . 305 . . . . . . . . . . . . 123 13 65 Melee 1724 | . . . 18 . . . . . 74 92 . . . . . . . 42 152 . . . . 162 . 245 . . . . 98 101 87 276 356 21 . Knockbacks 72 | . . . . . . . . . . . . . . . . . . . . . . . . 2 . 2 3 . . . 4 7 . 3 28 . 23 Impact . | . . . . . . . . . . . . . . . . . . . . . . . . . . . . . . . . . . . . . . Kinetic 69 | . . . . . . . . . . . . . . . . . . . . . . . . 2 . 2 3 . . . 4 7 . 3 28 . 20 Secondary 3 | . . . . . . . . . . . . . . . . . . . . . . . . . . . . . . . . . . . . . 3 Self-Inflicted Damage 279 | . . . . 50 . . . . . . . . . . . . . . . . . . . . . . . . . . . . . . 193 36 . Shots 8 | . . . . 2 . . . . . . . . . . . . . . . . . . . . . . . . . . . . . . 5 1 . Rammed 10 | . 6 . 2 . . . 2 . . . . . . . . . . . . . . . . . . . . . . . . . . . . . . Targets Rammed 16 | . 11 . 3 . . . 2 . . . . . . . . . . . . . . . . . . . . . . . . . . . . . . Kicked 5 | . 5 . . . . . . . . . . . . . . . . . . . . . . . . . . . . . . . . . . . . Crushed 1 | . . . 1 . . . . . . . . . . . . . . . . . . . . . . . . . . . . . . . . . . Highest Temperature 316 | 20 190 . 131 25 7 5 264 . 245 . 157 . 3 294 168 146 . 96 136 34 70 145 . 38 . 224 38 158 . 4 40 110 54 242 202 316 226 Average Temperature 45 | 15 48 . 38 7 6 3 62 . 97 . 67 . 3 133 57 61 . 32 47 13 23 26 . 19 . 73 25 50 . 4 20 76 25 47 48 67 60 Received Heat Transfer 2998 | . 165 42 999 327 27 90 435 . 102 . 12 . . 370 . . . . 39 . . . . . . . . . . 30 18 . . 9 169 32 132 Effects 2 | . . . . . . . . . . . . . . . . . . . . . . . . . . . . . . . . . . . . . 2 Energy Bleed 2 | . . . . . . . . . . . . . . . . . . . . . . . . . . . . . . . . . . . . . 2 Siege Activations . | . . . . . . . . . . . . . . . . . . . . . . . . . . . . . . . . . . . . . . Martial Activations . | . . . . . . . . . . . . . . . . . . . . . . . . . . . . . . . . . . . . . . Shielding Activations . | . . . . . . . . . . . . . . . . . . . . . . . . . . . . . . . . . . . . . . Robots Disrupted . | . . . . . . . . . . . . . . . . . . . . . . . . . . . . . . . . . . . . . . Combat Hostiles . | . . . . . . . . . . . . . . . . . . . . . . . . . . . . . . . . . . . . . . Robots Corrupted 3 | . . . . . . . 1 . . . . . . . . . . . 1 . . . . . . . . . . . . . . . . . 1 Combat Hostiles 3 | . . . . . . . 1 . . . . . . . . . . . 1 . . . . . . . . . . . . . . . . . 1 Parts Fried 8 | . . . . . . . 1 . . . . . . . . . . . 3 . . . . . . . . . . . . . . . . . 4 Impact Corruptions 2 | . . . . . . . . . . . . . . . . . . . . . . . . . . . . . . . . . . . . . 2 Robots Melted 19 | . 1 . . 3 . . 1 . . . . . . . . . . . . . . . . . . . . . . . . . . . 4 4 6 Combat Hostiles 16 | . . . . 3 . . 1 . . . . . . . . . . . . . . . . . . . . . . . . . . . 4 2 6 Parts Melted 69 | . 4 . 3 16 . . 11 . . . . . . . . . . . . . . . . . . . . . . . . . . . 7 13 15 Heat Transferred 21794 | . 2331 481 814 4662 74 1184 5103 . . . . . . . . . . . 37 . . . . . . . . . . . . . . . 950 2650 3508 Parts Sabotaged . | . . . . . . . . . . . . . . . . . . . . . . . . . . . . . . . . . . . . . . Parts Stolen . | . . . . . . . . . . . . . . . . . . . . . . . . . . . . . . . . . . . . . . Parts Stripped . | . . . . . . . . . . . . . . . . . . . . . . . . . . . . . . . . . . . . . . Power Chain Reactions 2 | . . . . . . . 1 . . . . . . . . . . . 1 . . . . . . . . . . . . . . . . . . Alert | -11 -10 -10 -8 -8 -8 -8 -7 -7 -7 -7 -7 -7 -6 -6 -6 -6 -6 -5 -5 -5 -5 -5 -4 -4 -4 -4 -4 -4 -4 -4 -3 -3 -2 -2 -2 -1 -1 ------- Run | Yrd Mat Sub Mat Gar Mat Gar Fac Was Fac Low Low Zio Pro Fac Low Low Dat Pro Fac Upp Upp War Pro Fac Was Fac Ext Cet Arc Hub Res Qua Res Tes Frg Acc Com Maximum Alert Level 5 | . . . 2 5 3 5 3 1 1 . . . . . . . . . 3 . . . . 1 . 1 2 2 1 2 1 . . . 4 5 5 Low Security (%) 49 | 100 100 . 65 . . . . . 97 . . . . 100 . . . . . . . . . 97 100 97 65 . 65 27 93 100 100 100 13 . 31 Level 1 6 | . . . 14 1 . . . 100 2 . . . . . . . . . 4 . . . . 2 . 2 12 46 34 56 6 . . . 16 . . Level 2 10 | . . . 19 27 30 10 . . . . . . . . . . . . 79 . . . . . . . 21 53 . 16 . . . . 21 . . Level 3 22 | . . . . 30 69 37 100 . . . . . . . . . . . 15 . . . . . . . . . . . . . . . 40 67 . Level 4 7 | . . . . 24 . 44 . . . . . . . . . . . . . . . . . . . . . . . . . . . . 8 10 45 Level 5 3 | . . . . 15 . 7 . . . . . . . . . . . . . . . . . . . . . . . . . . . . . 22 23 High Security . | . . . . . . . . . . . . . . . . . . . . . . . . . . . . . . . . . . . . . . Max Security . | . . . . . . . . . . . . . . . . . . . . . . . . . . . . . . . . . . . . . . Peak Influence 1997 | 5 88 . 552 1698 842 1645 1054 358 208 . . . . 30 . . . . 959 . . . . 207 74 224 477 495 308 458 263 106 144 79 1547 1843 1997 Initial 1176 | . . . . 343 827 423 863 358 203 . . . . 1 . . . . 600 . . . . 72 68 51 105 246 174 . 153 88 11 29 2 928 1176 Average 475 | 1 21 . 188 1052 779 1146 860 329 71 . . . . 4 . . . . 578 . . . . 84 64 72 170 400 148 256 112 23 74 17 642 1161 1397 Influence Increases 19197 | 5 378 40 1111 1395 25 1292 944 2 179 . 15 . 146 151 30 . . 50 1935 30 . 902 360 375 26 512 848 369 206 807 813 383 493 498 2155 1437 1285 Destroy 0b10 Robot/C 8060 | . 200 40 680 640 . 660 580 . . . . . 100 40 20 . . 20 140 20 . 640 220 100 . 40 380 160 80 240 460 40 180 40 1360 500 480 Destroy 0b10 Robot/NC 750 | 5 45 . 80 5 5 . 50 . 30 . . . . 10 . . . 5 105 . . 20 5 30 . 55 . 5 5 10 20 65 25 20 55 65 30 Destroy Leader 1236 | . 34 . 184 20 2 30 144 . 4 . . . 20 22 10 . . 10 54 10 . . 30 16 . 28 30 . . 34 96 6 60 10 130 130 122 Allied During Kill 1225 | . . . . 6 2 118 54 . . . . . 26 . . . . . . . . 182 . 5 . . 336 165 85 240 . . . . . . 6 Successful Hack 551 | . 23 . 17 14 . 24 10 . 18 . . . . 20 . . . . 19 . . . . 24 . 41 20 . . 6 119 57 . 92 . 7 40 Select Force Hacks 190 | . 30 . 60 . . . . . . . . . . . . . . . . . . . . . . . . . . 100 . . . . . . . Disable Machine 1275 | . . . 60 15 15 15 15 . 30 . . . . 15 . . . . 345 . . . . 90 . . 15 15 30 15 . 45 30 105 315 60 45 Anti-Garrison Action 900 | . . . . 500 . 400 . . . . . . . . . . . . . . . . . . . . . . . . . . . . . . . Destroy Structure 2070 | . 1 . 30 60 1 30 61 2 22 . . . . 14 . . . . 132 . . . . 80 26 48 22 24 6 42 58 80 108 111 205 525 382 Advance Influence 600 | . . . . . . . . . . . . . . . . . . . 600 . . . . . . . . . . . . . . . . . . Partial Spotted 630 | . . . . . . . . . 45 . . . . 15 . . . . 195 . . . . . . 15 45 . . 30 60 . 30 30 90 45 30 Lose Combat Pursuer 1710 | . 45 . . 135 . 15 30 . 30 . 15 . . 15 . . . 15 345 . . 60 105 30 . 285 . . . 90 . 90 60 90 . 105 150 Influence Decreases 17196 | 5 378 39 584 225 1071 299 1566 735 454 15 15 . 143 154 30 . . 50 980 414 250 553 914 294 149 370 623 375 639 517 947 521 461 546 612 1145 1123 Entered New Map 6573 | . . . 1 185 871 229 782 665 87 6 . . . 2 . . . . . 354 110 321 670 44 129 23 111 195 261 2 139 70 9 23 2 619 663 Time Decay 8293 | 5 358 39 533 . 50 . 704 50 367 9 15 . 123 141 30 . . 50 470 60 140 202 244 190 20 337 325 120 318 145 542 308 452 430 550 526 440 Search Patrol Dispatched 300 | . . . . . . . . . . . . . . . . . . . 300 . . . . . . . . . . . . . . . . . . Lost Part 260 | . 20 . 50 40 . 10 40 . . . . . . . . . . . . . . 10 . . . . . . . . . . . 10 60 . 20 Lost Ally 721 | . . . . . . 60 40 20 . . . . 20 11 . . . . 60 . . 20 . 60 . 10 60 60 60 220 10 10 . . . . . Purge Threat 1049 | . . . . . 150 . . . . . . . . . . . . . 150 . . . . . . . 127 . . 150 256 133 . 83 . . . Squads Dispatched 122 | . 3 . 8 . . . 14 . 5 . . . . 3 . . . . 11 . . . . 4 . 7 . . . 7 10 4 1 11 10 10 14 Investigation 27 | . 3 . 4 . . . 2 . 1 . . . . . . . . . 2 . . . . . . 4 . . . 2 8 . . . 1 . . Extermination 39 | . . . . . . . 4 . 2 . . . . 2 . . . . 2 . . . . 1 . 3 . . . 1 . 4 . 7 4 4 5 Reinforcement 31 | . . . 1 . . . 3 . 2 . . . . 1 . . . . 7 . . . . 3 . . . . . 2 2 . 1 3 1 2 3 Assault 20 | . . . . . . . 3 . . . . . . . . . . . . . . . . . . . . . . 2 . . . 1 4 4 6 Garrison 5 | . . . 3 . . . 2 . . . . . . . . . . . . . . . . . . . . . . . . . . . . . . Intercept . | . . . . . . . . . . . . . . . . . . . . . . . . . . . . . . . . . . . . . . Searches Triggered 3 | . . . . . . . . . . . . . . . . . . . 3 . . . . . . . . . . . . . . . . . . Unchained Authorized 5 | . . . . . . . . . . . . . . . . . . . . . . . . . . . . . . . . 1 . 2 . 2 . Construction Impeded 2 | . . . . . . . . . . . . . . . . . . . 1 . . . . 1 . . . . . . . . . . . . . Haulers Reinforced 9 | . . . . . . . . . . . . . . . . . . . 3 . . . . 1 . . . . . 1 2 . 1 1 . . . Active Scanning Responses . | . . . . . . . . . . . . . . . . . . . . . . . . . . . . . . . . . . . . . . Cargo Convoy Interrupts 1 | . . . . . . . 1 . . . . . . . . . . . . . . . . . . . . . . . . . . . . . . Stealth | -11 -10 -10 -8 -8 -8 -8 -7 -7 -7 -7 -7 -7 -6 -6 -6 -6 -6 -5 -5 -5 -5 -5 -4 -4 -4 -4 -4 -4 -4 -4 -3 -3 -2 -2 -2 -1 -1 --------- Run | Yrd Mat Sub Mat Gar Mat Gar Fac Was Fac Low Low Zio Pro Fac Low Low Dat Pro Fac Upp Upp War Pro Fac Was Fac Ext Cet Arc Hub Res Qua Res Tes Frg Acc Com Distress Signals 41 | . 1 . 1 . . . 2 . 2 . . . . 1 . . . . 6 . . . . 2 . 1 1 2 1 4 3 . 5 1 . 1 7 Communications Jammed . | . . . . . . . . . . . . . . . . . . . . . . . . . . . . . . . . . . . . . . Distress Signals . | . . . . . . . . . . . . . . . . . . . . . . . . . . . . . . . . . . . . . . Times Spotted 747 | . 17 8 50 39 2 22 46 6 30 1 1 . 3 11 2 1 4 15 44 4 . 43 15 13 6 28 19 11 1 23 29 18 21 19 74 44 77 Peak Tracking Total 13 | . 3 2 6 5 2 4 5 5 11 1 1 . 2 2 2 4 4 7 8 4 . 12 3 4 6 6 5 5 1 10 5 3 5 5 13 9 8 Tactical Retreats 73 | . 3 . . 6 . 1 2 1 6 . 1 . . 2 . 1 . 2 12 1 . 2 5 1 . 7 . . . 3 . 3 2 2 . 4 6 ECM-based Alert Blocks 45 | . . . . . . . . . 17 . . . . 1 . . . 7 16 4 . . . . . . . . . . . . . . . . . ID Masks Used 2 | . . . . . . . . . . . . . . . . . . . . . . . . . . . . . . . . . . 1 1 . . IFF Responses 135 | . . . . . . . . . . . . . . . . . . . . . . . . . . . . . . . . . . 126 9 . . Traps | -11 -10 -10 -8 -8 -8 -8 -7 -7 -7 -7 -7 -7 -6 -6 -6 -6 -6 -5 -5 -5 -5 -5 -4 -4 -4 -4 -4 -4 -4 -4 -3 -3 -2 -2 -2 -1 -1 ------- Run | Yrd Mat Sub Mat Gar Mat Gar Fac Was Fac Low Low Zio Pro Fac Low Low Dat Pro Fac Upp Upp War Pro Fac Was Fac Ext Cet Arc Hub Res Qua Res Tes Frg Acc Com Traps Triggered 32 | . 3 1 1 1 . 1 1 . 1 . . . . . . . . . 2 . . . . 2 . 1 4 . . . . 2 1 . 10 1 . Indirectly 1 | . . . . . . . . . . . . . . . . . . . 1 . . . . . . . . . . . . . . . . . . Trap Hack Attempts . | . . . . . . . . . . . . . . . . . . . . . . . . . . . . . . . . . . . . . . Triggered . | . . . . . . . . . . . . . . . . . . . . . . . . . . . . . . . . . . . . . . Disarmed . | . . . . . . . . . . . . . . . . . . . . . . . . . . . . . . . . . . . . . . Reprogrammed . | . . . . . . . . . . . . . . . . . . . . . . . . . . . . . . . . . . . . . . Reused . | . . . . . . . . . . . . . . . . . . . . . . . . . . . . . . . . . . . . . . Traps Extracted . | . . . . . . . . . . . . . . . . . . . . . . . . . . . . . . . . . . . . . . Installed . | . . . . . . . . . . . . . . . . . . . . . . . . . . . . . . . . . . . . . . Triggered . | . . . . . . . . . . . . . . . . . . . . . . . . . . . . . . . . . . . . . . Machines | -11 -10 -10 -8 -8 -8 -8 -7 -7 -7 -7 -7 -7 -6 -6 -6 -6 -6 -5 -5 -5 -5 -5 -4 -4 -4 -4 -4 -4 -4 -4 -3 -3 -2 -2 -2 -1 -1 ---------- Run | Yrd Mat Sub Mat Gar Mat Gar Fac Was Fac Low Low Zio Pro Fac Low Low Dat Pro Fac Upp Upp War Pro Fac Was Fac Ext Cet Arc Hub Res Qua Res Tes Frg Acc Com Machines Disabled 117 | . . 1 4 8 1 8 1 . 2 . 1 . . 1 . . 1 . 23 . . 2 . 6 . . 2 1 2 1 . 3 2 7 33 4 3 Max in Single Turn 14 | . . 1 1 1 . 2 1 . 1 . 1 . . 1 . . 1 . 14 . . 2 . 2 . . 1 1 1 . . 1 1 1 2 1 1 Garrison Access 15 | . . . . . . . 1 . . . . . . 1 . . . . 1 . . . . 2 . . . . . 2 4 . 2 . 1 1 . Garrison Relay 15 | . . . . 7 . 8 . . . . . . . . . . . . . . . . . . . . . . . . . . . . . . . Network Hub 2 | . . . . . . . . . . . . . . . . . . . . . . . . . . . . . . 2 . . . . . . . Energy Cycler 1 | . . . . . . . . . . . . . . . . . . . . . . . . . . . . . . . . . . . . 1 . Machines Repaired . | . . . . . . . . . . . . . . . . . . . . . . . . . . . . . . . . . . . . . . Machines Dismantled . | . . . . . . . . . . . . . . . . . . . . . . . . . . . . . . . . . . . . . . Machines Sabotaged 2 | . . . . . . . . . . . . . . . . . . . . . . . . . . . . . . 2 . . . . . . . Overloaded Fab Kills . | . . . . . . . . . . . . . . . . . . . . . . . . . . . . . . . . . . . . . . Hacking | -11 -10 -10 -8 -8 -8 -8 -7 -7 -7 -7 -7 -7 -6 -6 -6 -6 -6 -5 -5 -5 -5 -5 -4 -4 -4 -4 -4 -4 -4 -4 -3 -3 -2 -2 -2 -1 -1 --------- Run | Yrd Mat Sub Mat Gar Mat Gar Fac Was Fac Low Low Zio Pro Fac Low Low Dat Pro Fac Upp Upp War Pro Fac Was Fac Ext Cet Arc Hub Res Qua Res Tes Frg Acc Com Machines Accessed 201 | . 7 . 12 3 3 4 11 . 15 1 2 . . 6 . . 3 . 20 . . 5 . 12 . 12 13 1 . 6 17 12 4 14 2 9 7 Terminals 126 | . 6 . 6 3 2 4 3 . 10 . . . . 5 . . . . 12 . . . . 6 . 8 13 1 . 4 7 10 1 10 1 7 7 Fabricators 11 | . . . . . . . 2 . 2 . . . . . . . . . 2 . . . . . . 4 . . . . 1 . . . . . . Repair Stations 8 | . . . 2 . . . 2 . . . . . . . . . . . . . . . . . . . . . . . 2 . . 2 . . . Recycling Units 10 | . 1 . 2 . . . . . . . . . . . . . . . 3 . . . . 2 . . . . . . 1 . 1 . . . . Scanalyzers 13 | . . . 1 . . . 2 . 1 . . . . . . . . . 2 . . . . 2 . . . . . . 2 1 . 1 . 1 . Garrison Access 22 | . . . 1 . 1 . 2 . 2 . . . . 1 . . . . 1 . . . . 2 . . . . . 2 4 1 2 1 1 1 . Total Hacks 569 | . 20 . 27 9 7 8 20 . 36 4 5 . . 19 . . 29 . 53 . . 11 . 28 . 34 23 2 . 12 70 40 9 61 2 19 21 Successful 323 | . 12 . 11 2 2 5 6 . 14 4 5 . . 14 . . 29 . 36 . . 11 . 20 . 17 18 . . 9 50 18 3 30 2 2 3 Failed 244 | . 8 . 16 7 5 3 14 . 22 . . . . 5 . . . . 17 . . . . 7 . 17 5 2 . 3 19 22 6 31 . 17 18 Catastrophic 36 | . . . 3 1 . 1 . . 5 . . . . . . . . . 2 . . . . . . 4 . 1 . . 1 2 2 3 . 7 4 Database Lockouts 2 | . . . . . . . . . . . . . . . . . . . . . . . . 1 . . . . . . 1 . . . . . . Manual 253 | . 15 . 19 1 5 1 10 . 12 . . . . 12 . . . . 24 . . 1 . 15 . 23 10 1 . 8 26 24 . 35 . . 11 Terminals 371 | . 18 . 15 9 6 8 7 . 23 . . . . 18 . . . . 37 . . . . 16 . 17 23 2 . 10 37 36 4 48 1 15 21 Fabricators 38 | . . . . . . . 4 . 6 . . . . . . . . . 7 . . . . . . 17 . . . . 4 . . . . . . Repair Stations 20 | . . . 5 . . . 2 . . . . . . . . . . . . . . . . . . . . . . . 7 . . 6 . . . Recycling Units 22 | . 2 . 2 . . . . . . . . . . . . . . . 6 . . . . 6 . . . . . . 5 . 1 . . . . Scanalyzers 31 | . . . 3 . . . 4 . 3 . . . . . . . . . 2 . . . . 3 . . . . . . 10 1 . 3 . 2 . Garrison Access 38 | . . . 2 . 1 . 3 . 4 . . . . 1 . . . . 1 . . . . 3 . . . . . 2 7 3 4 4 1 2 . Terminal Hacks 142 | . 3 . 2 1 1 4 . . 6 4 5 . . 4 . . 29 . 14 . . 11 . 2 . 4 11 . . 5 16 7 . 11 1 1 . Record 20 | . . . . . . . . . . 4 4 . . . . . 6 . . . . 6 . . . . . . . . . . . . . . . Part Schematic 20 | . . . . . . . . . . . . . . 1 . . 12 . 2 . . . . . . 1 1 . . . 2 1 . . . . . Robot Schematic 8 | . . . . . . . . . . . . . . . . . 8 . . . . . . . . . . . . . . . . . . . . Robot Analysis 1 | . . . . . . . . . 1 . . . . . . . . . . . . . . . . . . . . . . . . . . . . Prototype ID Bank 15 | . 2 . 1 . . . . . . . . . . . . . 3 . 1 . . 4 . . . . . . . . 2 . . 2 . . . Open Door 12 | . . . . . . . . . . . 1 . . . . . . . . . . 1 . . . . 8 . . . . . . 1 . 1 . Open DSF 1 | . . . . . . . . . . . . . . . . . . . 1 . . . . . . . . . . . . . . . . . . Level Access Points 2 | . . . . . . . . . . . . . . . . . . . 1 . . . . . . . . . . 1 . . . . . . . Branch Access Points 5 | . . . 1 . . . . . 1 . . . . . . . . . 1 . . . . 1 . 1 . . . . . . . . . . . Emergency Access Points 2 | . . . . 1 . 1 . . . . . . . . . . . . . . . . . . . . . . . . . . . . . . . Terminal Index 4 | . 1 . . . . . . . 1 . . . . . . . . . 1 . . . . . . . . . . . 1 . . . . . . Repair Station Index 1 | . . . . . . . . . . . . . . . . . . . . . . . . . . . . . . . 1 . . . . . . Alert Level 2 | . . . . . . . . . . . . . . . . . . . . . . . . . . . . . . . 1 . . 1 . . . Unreport Threat 9 | . . . . . 1 . . . . . . . . . . . . . 1 . . . . . . . 2 . . 1 2 1 . 1 . . . Locate Traps 6 | . . . . . . . . . . . . . . 2 . . . . . . . . . 1 . . . . . . . 1 . 2 . . . Maintenance Status 1 | . . . . . . . . . . . . . . . . . . . . . . . . . . . . . . . 1 . . . . . . Patrol Status 2 | . . . . . . . . . . . . . . . . . . . 1 . . . . . . . . . . . 1 . . . . . . Transport Status 1 | . . . . . . . . . . . . . . . . . . . . . . . . . . . . . . . 1 . . . . . . Recall Investigation 2 | . . . . . . . . . 1 . . . . . . . . . 1 . . . . . . . . . . . . . . . . . . Recall Extermination 8 | . . . . . . . . . 1 . . . . . . . . . 2 . . . . . . 1 . . . . . 2 . 2 . . . Recall Reinforcements 5 | . . . . . . . . . . . . . . . . . . . 1 . . . . . . 1 . . . 1 1 . . 1 . . . Recall Assault 1 | . . . . . . . . . . . . . . . . . . . . . . . . . . . . . . . . . . 1 . . . Hauler Manifests 5 | . . . . . . . . . 1 . . . . 1 . . . . 1 . . . . . . . . . . . 1 1 . . . . . Registered Components 1 | . . . . . . . . . . . . . . . . . . . . . . . . . . . . . . . 1 . . . . . . Zone Layout 4 | . . . . . . . . . . . . . . . . . . . . . . . . . . . . . . 2 1 1 . . . . . Garrison Registry 1 | . . . . . . 1 . . . . . . . . . . . . . . . . . . . . . . . . . . . . . . . Patrol Navigation 1 | . . . . . . 1 . . . . . . . . . . . . . . . . . . . . . . . . . . . . . . . Security Stations 1 | . . . . . . 1 . . . . . . . . . . . . . . . . . . . . . . . . . . . . . . . Proto ID Catalog 1 | . . . . . . . . . . . . . . . . . . . . . . . . . . . . . . . . . . . 1 . . Fabricator Hacks 18 | . . . . . . . 2 . 2 . . . . . . . . . 4 . . . . . . 8 . . . . 2 . . . . . . Network Status 4 | . . . . . . . 2 . 1 . . . . . . . . . 1 . . . . . . . . . . . . . . . . . . Load Schematic 8 | . . . . . . . . . 1 . . . . . . . . . 2 . . . . . . 4 . . . . 1 . . . . . . Build 6 | . . . . . . . . . . . . . . . . . . . 1 . . . . . . 4 . . . . 1 . . . . . . Repair Station Hacks 10 | . . . . . . . . . . . . . . . . . . . . . . . . . . . . . . . 6 . . 4 . . . Scan Component 5 | . . . . . . . . . . . . . . . . . . . . . . . . . . . . . . . 3 . . 2 . . . Repair 5 | . . . . . . . . . . . . . . . . . . . . . . . . . . . . . . . 3 . . 2 . . . Recycling Unit Hacks 7 | . . . . . . . . . . . . . . . . . . . 3 . . . . 2 . . . . . . 1 . 1 . . . . Retrieve Components 7 | . . . . . . . . . . . . . . . . . . . 3 . . . . 2 . . . . . . 1 . 1 . . . . Scanalyzer 21 | . . . 3 . . . 1 . 3 . . . . . . . . . 1 . . . . 2 . . . . . . 8 1 . 2 . . . Insert Component 11 | . . . . . . . 1 . 1 . . . . . . . . . 1 . . . . 1 . . . . . . 4 1 . 2 . . . Analyze 4 | . . . . . . . . . 1 . . . . . . . . . . . . . . . . . . . . . 3 . . . . . . Retrieve Study 6 | . . . 3 . . . . . 1 . . . . . . . . . . . . . . 1 . . . . . . 1 . . . . . . Garrison Access Hacks 17 | . . . 1 . 1 . 1 . . . . . . 1 . . . . 1 . . . . 2 . . . . . 2 4 . 2 . 1 1 . Unlock Access 2 | . . . 1 . 1 . . . . . . . . . . . . . . . . . . . . . . . . . . . . . . . . Seal Access 15 | . . . . . . . 1 . . . . . . 1 . . . . 1 . . . . 2 . . . . . 2 4 . 2 . 1 1 . Unauthorized Hacks 108 | . 9 . 5 1 . 1 2 . 3 . . . . 9 . . . . 13 . . . . 12 . 5 7 . . 2 13 10 . 13 . . 3 Terminals 89 | . 8 . 2 1 . 1 . . . . . . . 9 . . . . 10 . . . . 10 . 2 7 . . 2 11 10 . 13 . . 3 Track 8 | . . . . . . . . . . . . . . . . . . . 2 . . . . 1 . . . . . . 1 2 . . . . 2 Assimilate 11 | . . . 1 . . . . . . . . . . 2 . . . . 2 . . . . 1 . 1 1 . . . 1 1 . 1 . . . Botnet 20 | . 2 . 1 1 . 1 . . . . . . . 1 . . . . 6 . . . . 2 . . 1 . . . 2 1 . 2 . . . Disrupt 5 | . . . . . . . . . . . . . . . . . . . . . . . . . . . 1 . . . 1 1 . 2 . . . Operators 8 | . 1 . . . . . . . . . . . . 1 . . . . . . . . . 1 . . 1 . . . 1 1 . 1 . . 1 Skim 35 | . 5 . . . . . . . . . . . . 5 . . . . . . . . . 5 . 1 3 . . . 5 4 . 7 . . . Sabotage 2 | . . . . . . . . . . . . . . . . . . . . . . . . . . . . . . 2 . . . . . . . Fabricators 10 | . . . . . . . 1 . 3 . . . . . . . . . 3 . . . . . . 3 . . . . . . . . . . . Prioritize 3 | . . . . . . . . . . . . . . . . . . . 1 . . . . . . 2 . . . . . . . . . . . Liberate 3 | . . . . . . . 1 . 1 . . . . . . . . . 1 . . . . . . . . . . . . . . . . . . Haulers 1 | . . . . . . . . . 1 . . . . . . . . . . . . . . . . . . . . . . . . . . . . Recompile 3 | . . . . . . . . . 1 . . . . . . . . . 1 . . . . . . 1 . . . . . . . . . . . Repair Stations 2 | . . . 1 . . . 1 . . . . . . . . . . . . . . . . . . . . . . . . . . . . . . Patch 2 | . . . 1 . . . 1 . . . . . . . . . . . . . . . . . . . . . . . . . . . . . . Recycling Units 7 | . 1 . 2 . . . . . . . . . . . . . . . . . . . . 2 . . . . . . 2 . . . . . . Recyclers 3 | . . . . . . . . . . . . . . . . . . . . . . . . 2 . . . . . . 1 . . . . . . Mask 1 | . . . . . . . . . . . . . . . . . . . . . . . . . . . . . . . 1 . . . . . . Tunnel 3 | . 1 . 2 . . . . . . . . . . . . . . . . . . . . . . . . . . . . . . . . . . Scanalyzers . | . . . . . . . . . . . . . . . . . . . . . . . . . . . . . . . . . . . . . . Garrison Access . | . . . . . . . . . . . . . . . . . . . . . . . . . . . . . . . . . . . . . . Data Cores Recovered 9 | . 1 . . . . . . . . . . . . . . . . . . . . . . 1 . 1 . . . . 1 1 . . . 2 2 Used 2 | . . . . . . . . . . . . . . . . . . . . . . . . 1 . 1 . . . . . . . . . . . Hacking Detections 135 | . 6 . 10 3 2 3 8 . 13 . . . . 4 . . . . 10 . . . . 10 . 11 7 2 . 3 8 11 2 8 . 7 7 Full Trace Events 7 | . . . . 1 . 1 1 . . . . . . . . . . . . . . . . . . 3 . . . . 1 . . . . . . Feedback Events . | . . . . . . . . . . . . . . . . . . . . . . . . . . . . . . . . . . . . . . Feedback Blocked . | . . . . . . . . . . . . . . . . . . . . . . . . . . . . . . . . . . . . . . Robot Schematics Acquired 54 | . . . . . . . . . . . . . . . . . 8 . . . . . . . . . . . . . . 3 . 43 . . . Robots Built . | . . . . . . . . . . . . . . . . . . . . . . . . . . . . . . . . . . . . . . Authchips . | . . . . . . . . . . . . . . . . . . . . . . . . . . . . . . . . . . . . . . Time . | . . . . . . . . . . . . . . . . . . . . . . . . . . . . . . . . . . . . . . Total Robot Build Rating . | . . . . . . . . . . . . . . . . . . . . . . . . . . . . . . . . . . . . . . Part Schematics Acquired 38 | . . . . . . . . . 1 . . . . 1 . . 12 . 2 . . . . . . 1 1 . . . 3 7 . . 10 . . Parts Built 7 | . . . . . . . . . . . . . . . . . . . 1 . . . . . . 5 . . . . 1 . . . . . . Authchips 2 | . . . . . . . . . . . . . . . . . . . 1 . . . . . . 1 . . . . . . . . . . . Time 301 | . . . . . . . . . . . . . . . . . . . 56 . . . . . . 203 . . . . 42 . . . . . . Total Part Build Rating 44 | . . . . . . . . . . . . . . . . . . . 6 . . . . . . 30 . . . . 8 . . . . . . Part Studies Acquired 6 | . . . 3 . . . . . 1 . . . . . . . . . . . . . . 1 . . . . . . 1 . . . . . . Parts Repaired 5 | . . . . . . . . . . . . . . . . . . . . . . . . . . . . . . . 3 . . 2 . . . Time 352 | . . . . . . . . . . . . . . . . . . . . . . . . . . . . . . . 219 . . 133 . . . Parts Recycled . | . . . . . . . . . . . . . . . . . . . . . . . . . . . . . . . . . . . . . . Recycled Matter . | . . . . . . . . . . . . . . . . . . . . . . . . . . . . . . . . . . . . . . Retrieved Matter . | . . . . . . . . . . . . . . . . . . . . . . . . . . . . . . . . . . . . . . Retrieved Components 14 | . . . . . . . . . . . . . . . . . . . 11 . . . . . . . . . . . . . 3 . . . . Parts Scanalyzed 3 | . . . . . . . . . 1 . . . . . . . . . . . . . . . . . . . . . 2 . . . . . . Part Schematics Acquired 2 | . . . . . . . . . 1 . . . . . . . . . . . . . . . . . . . . . 1 . . . . . . Parts Damaged . | . . . . . . . . . . . . . . . . . . . . . . . . . . . . . . . . . . . . . . Bothacking | -11 -10 -10 -8 -8 -8 -8 -7 -7 -7 -7 -7 -7 -6 -6 -6 -6 -6 -5 -5 -5 -5 -5 -4 -4 -4 -4 -4 -4 -4 -4 -3 -3 -2 -2 -2 -1 -1 ------------ Run | Yrd Mat Sub Mat Gar Mat Gar Fac Was Fac Low Low Zio Pro Fac Low Low Dat Pro Fac Upp Upp War Pro Fac Was Fac Ext Cet Arc Hub Res Qua Res Tes Frg Acc Com Used RIF Installer . | . . . . . . . . . . . . . . . . . . . . . . . . . . . . . . . . . . . . . . Robots Hacked 6 | . . . . . . 1 . . . . . . . . . . . . . . . 4 . . . . . . 1 . . . . . . . . Non-combat 1 | . . . . . . . . . . . . . . . . . . . . . . . . . . . . . 1 . . . . . . . . Combat 5 | . . . . . . 1 . . . . . . . . . . . . . . . 4 . . . . . . . . . . . . . . . Robot Hacks Applied 6 | . . . . . . 1 . . . . . . . . . . . . . . . 4 . . . . . . 1 . . . . . . . . parse_system 5 | . . . . . . 1 . . . . . . . . . . . . . . . 4 . . . . . . . . . . . . . . . check_alert 1 | . . . . . . . . . . . . . . . . . . . . . . . . . . . . . 1 . . . . . . . . Relay Couplers Released 61 | . . . . 28 . 31 . . . . . . . . . . . . . . . . . . . . . . . 2 . . . . . . . Machine Destruction 61 | . . . . 28 . 31 . . . . . . . . . . . . . . . . . . . . . . . 2 . . . . . . . Fabnet Peak Effective % . | . . . . . . . . . . . . . . . . . . . . . . . . . . . . . . . . . . . . . . Robots Rewired 20 | . . . . 3 . . . . . . . . . . . . . . . . . 6 . 3 . . 8 . . . . . . . . . . Allies Hacked 2 | . . . . . . 1 . . . . . . . . . . . . . . . . . . . . . . . . . 1 . . . . . Hacks Repelled . | . . . . . . . . . . . . . . . . . . . . . . . . . . . . . . . . . . . . . . Allies | -11 -10 -10 -8 -8 -8 -8 -7 -7 -7 -7 -7 -7 -6 -6 -6 -6 -6 -5 -5 -5 -5 -5 -4 -4 -4 -4 -4 -4 -4 -4 -3 -3 -2 -2 -2 -1 -1 -------- Run | Yrd Mat Sub Mat Gar Mat Gar Fac Was Fac Low Low Zio Pro Fac Low Low Dat Pro Fac Upp Upp War Pro Fac Was Fac Ext Cet Arc Hub Res Qua Res Tes Frg Acc Com Total Allies 61 | . . . 1 4 . . 3 1 . . . 5 . 2 . . . . 4 . . 6 . 4 . 1 22 5 . . 1 1 . 1 . . . Largest Group 21 | . . . 1 3 4 4 3 1 . . . 5 5 2 1 . . . 2 . . 5 . 3 . 1 21 18 18 14 1 1 . 1 . . . Highest-Rated Group 1138 | . . . 10 181 197 197 149 16 . . . 121 121 39 26 . . . 98 . . 267 . 112 . 10 979 1138 1138 857 26 26 . 10 . . . Highest-Rated Ally 159 | . . . 10 149 149 149 149 16 . . . 31 31 26 26 . . . 49 . . 64 . 49 . 10 159 159 159 96 26 26 . 10 . . . Initial Warlord ECA Mod 20 | . . . . . 11 11 20 20 20 20 20 20 19 19 19 19 19 18 18 18 18 18 17 17 17 17 17 17 17 17 16 16 15 15 15 14 14 Total Orders 38 | . . . 1 . . 3 . . . . . . . 10 . . . . 2 . . 4 . 4 . . 3 1 . 1 . . . 1 . 3 5 STAY 22 | . . . 1 . . 2 . . . . . . . 7 . . . . 1 . . 4 . 2 . . 2 1 . 1 . . . 1 . . . ROAM 1 | . . . . . . . . . . . . . . 1 . . . . . . . . . . . . . . . . . . . . . . . FOLLOW 7 | . . . . . . 1 . . . . . . . 2 . . . . 1 . . . . 2 . . 1 . . . . . . . . . . RETURN 8 | . . . . . . . . . . . . . . . . . . . . . . . . . . . . . . . . . . . . 3 5 Ally Attacks 445 | . . . . 3 12 55 60 12 . . . . 10 . . . . . 13 . . . . 9 . . 92 25 23 95 . . . . . 3 33 Total Damage 14875 | . . . . 68 162 1895 1256 132 . . . . 393 . . . . . 469 . . . . 217 . . 2614 834 512 3583 . . . . . 318 2422 Kills 81 | . . . . 2 1 25 9 . . . . . 5 . . . . . 3 . . . . . . . 12 4 4 15 . . . . . 1 . Allies Corrupted 1 | . . . . . . . . . . . . . . . . . . . . . . . . . . . . . . 1 . . . . . . . Allies Melted 2 | . . . . . . . . . . . . . . . . . . . . . . . . . . . . . . . . . 1 . . . 1 Intel | -11 -10 -10 -8 -8 -8 -8 -7 -7 -7 -7 -7 -7 -6 -6 -6 -6 -6 -5 -5 -5 -5 -5 -4 -4 -4 -4 -4 -4 -4 -4 -3 -3 -2 -2 -2 -1 -1 ------- Run | Yrd Mat Sub Mat Gar Mat Gar Fac Was Fac Low Low Zio Pro Fac Low Low Dat Pro Fac Upp Upp War Pro Fac Was Fac Ext Cet Arc Hub Res Qua Res Tes Frg Acc Com Active Infowar (turns) 23818 | 15 757 . 362 . . . 2237 . 875 297 311 697 827 705 576 304 156 397 1196 133 283 1001 1108 390 50 798 905 256 717 303 1781 774 1228 1333 549 1456 1041 Optics 17296 | . . . . . . . . . 587 297 311 697 827 705 576 304 156 397 1196 133 283 1001 1108 390 50 798 905 256 717 303 1781 774 1228 1333 183 . . Sensors 15775 | . . . . . . . 246 . 731 291 311 88 782 676 576 304 156 397 1142 133 283 1001 1106 352 . 673 857 256 717 303 1570 654 1049 1121 . . . Seismic 5344 | 15 757 . 362 . . . 1991 . . . . . . . . . . . . . . . . . . . . . . . . . . . . 1251 968 Cloaking 2470 | . . . . . . . . . . . . . . . . . . . . . . . . . . . . . . . . . . . 366 1063 1041 Jamming 7 | . . . . . . . . . . . . . . . . . . . 7 . . . . . . . . . . . . . . . . . . ECM 1146 | . . . . . . . . . 136 . . . . 55 . . . 16 276 133 283 247 . . . . . . . . . . . . . . . ID Mask 82 | . . . . . . . . . . . . . . . . . . . . . . . . . . . . . . . . . . 61 21 . . Robot Analysis Total 101 | . . . . . . . . . 1 . . . . . . . . . . . . . . . . . . . . . . . . 100 . . . Derelict Logs Recovered 17 | . . . . . . . . . . 2 2 . 2 . 1 3 . 2 . 1 2 . 2 . . . . . . . . . . . . . . Drone Launches 11 | . . . . . . . . . . . . . . . . . . . . . . . . . . . . . . . . . . . . 4 7 Drone Recoveries 11 | . . . . . . . . . . . . . . . . . . . . . . . . . . . . . . . . . . . . 4 7 Exploration | -11 -10 -10 -8 -8 -8 -8 -7 -7 -7 -7 -7 -7 -6 -6 -6 -6 -6 -5 -5 -5 -5 -5 -4 -4 -4 -4 -4 -4 -4 -4 -3 -3 -2 -2 -2 -1 -1 ------------- Run | Yrd Mat Sub Mat Gar Mat Gar Fac Was Fac Low Low Zio Pro Fac Low Low Dat Pro Fac Upp Upp War Pro Fac Was Fac Ext Cet Arc Hub Res Qua Res Tes Frg Acc Com Turns Passed 34914 | 42 1703 3018 2215 1573 106 1041 3063 102 887 297 311 697 827 705 576 304 156 397 1196 133 283 1001 1108 390 50 798 905 256 717 303 1781 774 1228 1333 1585 1464 1589 Spaces Moved 46199 | 26 864 734 1037 682 60 514 1488 182 1660 804 807 956 849 1348 663 645 172 732 2610 410 810 1395 1938 981 135 1661 1224 320 81 536 4397 1775 3925 2827 2411 1950 2590 Core . | . . . . . . . . . . . . . . . . . . . . . . . . . . . . . . . . . . . . . . Treads 4416 | . 434 734 502 682 60 514 1488 2 . . . . . . . . . . . . . . . . . . . . . . . . . . . . . Legs 456 | 26 430 . . . . . . . . . . . . . . . . . . . . . . . . . . . . . . . . . . . . Wheels 535 | . . . 535 . . . . . . . . . . . . . . . . . . . . . . . . . . . . . . . . . . Hover 5732 | . . . . . . . . . . . . . . . . . . . . . . . . . . . . . . . . . . . 1192 1950 2590 Flight 35060 | . . . . . . . . 180 1660 804 807 956 849 1348 663 645 172 732 2610 410 810 1395 1938 981 135 1661 1224 320 81 536 4397 1775 3925 2827 1219 . . Fastest Speed 15 | 120 120 160 110 157 160 160 160 34 34 34 34 34 34 34 34 34 34 34 30 30 30 30 30 27 27 27 27 27 27 27 26 23 18 15 15 33 33 Average Speed 44 | 120 140 170 156 159 160 160 166 35 34 34 34 34 34 34 34 34 38 34 30 30 30 30 30 27 27 27 27 27 27 27 26 25 21 21 28 33 33 Slowest Speed 295 | 120 190 240 170 160 160 240 240 160 86 34 34 34 34 34 86 86 295 34 30 30 30 83 30 30 27 151 27 27 27 27 86 26 91 22 116 33 99 Overloaded Moves 200 | . . . . . . . . . . . . . . . . . . . . . . . . . . . . . . . . 36 1 44 119 . . Propulsion Burnouts . | . . . . . . . . . . . . . . . . . . . . . . . . . . . . . . . . . . . . . . Robots Hopped 185 | . . . . . . . . 1 17 . . . 1 12 . . . 1 26 . . 3 . 7 2 1 4 . 1 5 7 36 28 30 3 . . Potential Cave-ins 2 | . . . . . . . . . . . . . . . . . . . . . . . . . . . . . . . . . . . . . 2 Cave-ins Triggered . | . . . . . . . . . . . . . . . . . . . . . . . . . . . . . . . . . . . . . . Teleports 8 | . . . . . . . . . . . . . . . . . . . . . . . . . . . . . . . . . . . 8 . . Exploration Rate (%) 65 | 3 90 50 72 66 9 68 30 88 47 88 85 84 67 24 81 93 82 77 67 70 82 91 89 27 79 29 89 73 76 50 72 95 75 93 39 37 45 Regions Visited 37 Branch Regions 21 Pre-discovered Areas 16 | . 1 1 2 . . . . . . 1 1 3 . 3 . 1 1 1 . . . . . . . . . . . . . . . 1 . . . Known Exits Taken 28 | . 1 . 1 . 1 . . . 1 1 1 1 1 1 1 1 1 1 1 1 1 1 1 . . 1 1 1 1 1 1 1 1 1 1 . . Unknown Exits Taken 3 | 1 . 1 . . . . . . . . . . . . . . . . . . . . . . . . . . . . . . . . . 1 . Scrap Searched 27 | . . . . . . . . . . 4 4 2 2 . 3 4 . 3 . 1 3 . 1 . . . . . . . . . . . . . . Spaces Dug 452 | . . . 17 . . . 32 2 24 4 2 . 12 14 23 3 1 6 40 2 11 . 18 10 13 14 1 . . 5 21 23 27 28 13 46 40 Terrain Destroyed 1208 | . . 3 39 12 . 7 48 2 24 4 2 . 40 14 29 7 1 10 87 2 12 118 56 19 28 24 6 5 1 5 37 44 38 36 73 205 170 Melee 322 | . . . 1 . . . 27 2 17 4 2 . 12 14 13 3 1 6 39 2 11 . 14 10 . 13 . . . 5 15 23 27 28 5 18 10 Projectile 396 | . . 3 2 . . . 6 . . . . . . . 16 4 . 4 8 . 1 2 42 9 . 11 6 5 1 . 16 21 11 8 26 87 107 AOE 490 | . . . 36 12 . 7 15 . 7 . . . 28 . . . . . 40 . . 116 . . 28 . . . . . 6 . . . 42 100 53 Terrain Rammed . | . . . . . . . . . . . . . . . . . . . . . . . . . . . . . . . . . . . . . . Walls Destroyed . | . . . . . . . . . . . . . . . . . . . . . . . . . . . . . . . . . . . . . . Machines Disabled . | . . . . . . . . . . . . . . . . . . . . . . . . . . . . . . . . . . . . . . Actions | -11 -10 -10 -8 -8 -8 -8 -7 -7 -7 -7 -7 -7 -6 -6 -6 -6 -6 -5 -5 -5 -5 -5 -4 -4 -4 -4 -4 -4 -4 -4 -3 -3 -2 -2 -2 -1 -1 --------- Run | Yrd Mat Sub Mat Gar Mat Gar Fac Was Fac Low Low Zio Pro Fac Low Low Dat Pro Fac Upp Upp War Pro Fac Was Fac Ext Cet Arc Hub Res Qua Res Tes Frg Acc Com Total 58299 | 30 1217 2473 1442 992 70 672 1855 224 1929 820 839 1337 1368 1519 975 719 227 843 2904 414 832 1946 2393 1060 143 1954 1769 469 771 677 4919 1970 4202 3422 3142 2631 3130 Wait 8961 | . 244 1684 152 154 1 97 143 13 218 4 30 310 498 128 268 66 11 82 174 2 7 418 388 16 7 226 450 125 684 140 376 118 172 511 271 505 268 Move 45825 | 25 863 733 1037 681 59 513 1488 179 1626 803 806 955 846 1324 662 644 171 729 2562 409 809 1389 1937 968 131 1658 1215 319 78 526 4383 1705 3879 2770 2404 1949 2590 Hop 155 | . . . . . . . . 1 16 . . . 1 11 . . . 1 21 . . 2 . 6 1 1 4 . 1 4 6 33 17 26 3 . . Pick Up 280 | . 8 9 36 7 3 6 19 1 9 1 . 23 1 2 1 . 4 . 10 . . 14 1 4 . 5 . . . . 11 7 8 9 56 11 14 Fast Attach 147 | 1 2 2 16 2 . 2 2 . 4 2 . 11 . 2 2 . . . 5 . 1 18 2 . . 3 . 3 2 . 13 3 8 7 12 8 14 Attach 131 | . 1 1 10 5 2 1 8 4 7 . . 1 1 4 3 . 1 . 6 . 1 5 . 2 . 2 . . . . 3 1 2 4 38 6 12 Detach 92 | . . . 3 1 . . 1 5 5 . . 8 1 2 2 . 1 . 4 . 1 14 1 . . 1 . . . . 1 1 1 3 26 2 8 Swap 300 | . 7 7 22 25 1 10 41 2 6 . . 3 2 6 3 2 . 9 17 . . 1 . 2 2 4 4 . . . 16 8 14 7 26 19 34 Drop 341 | . 6 9 43 5 3 6 17 16 4 3 . 26 1 6 4 . 4 . 12 . 1 28 2 3 . 6 . 3 2 . 20 8 11 14 48 14 16 Fire 1195 | 4 75 23 74 94 1 34 84 . 1 . . . 3 . 16 4 . 4 14 . 1 37 44 24 2 9 25 19 3 . 67 35 40 26 186 90 156 Melee 635 | . . 5 46 6 . 2 50 3 33 7 3 . 14 34 14 3 35 18 64 3 11 . 18 12 . 24 1 . 1 7 23 36 37 45 35 27 18 Ram . | . . . . . . . . . . . . . . . . . . . . . . . . . . . . . . . . . . . . . . Kick 5 | . 5 . . . . . . . . . . . . . . . . . . . . . . . . . . . . . . . . . . . . Crush 11 | . 6 . 3 . . . 2 . . . . . . . . . . . . . . . . . . . . . . . . . . . . . . Escape Stasis 155 | . . . . . . . . . . . . . . . . . . . 15 . . . . 15 . 15 45 . . . . 15 13 . 37 . . Rewire 66 | . . . . 12 . 1 . . . . . . . . . . . . . . . 20 . 8 . . 25 . . . . . . . . . . Trap . | . . . . . . . . . . . . . . . . . . . . . . . . . . . . . . . . . . . . . . Miscellaneous . | . . . . . . . . . . . . . . . . . . . . . . . . . . . . . . . . . . . . . . Route ------- -11/Scrapyard -10/Materials (discovered 6 exits: *Mat x3 / *Min x2 / *Sub) -10/Subcaves (discovered 4 exits: *Mat / Rec / [*Scr x2]) -8/Materials (discovered 3 exits: *Fac x2 / Gar) -8/Garrison (discovered 3 exits: *Mat x3) -8/Materials -8/Garrison (discovered 3 exits: *Fac x3) -7/Factory -7/Waste -7/Factory (discovered 4 exits: *Fac x2 / *Low x2) -7/Lower Caves -7/Lower Caves (discovered 2 exits: *Fac / *Zio) -7/Zion -6/Proximity Caves -6/Factory (discovered 4 exits: *Fac x2 / *Low x2) -6/Lower Caves -6/Lower Caves (discovered 2 exits: *Fac / *Dat) -6/Data Miner -5/Proximity Caves -5/Factory (discovered 6 exits: *Fac x4 / *Upp x2) -5/Upper Caves -5/Upper Caves (discovered 2 exits: *Fac / *War) -5/Warlord -4/Proximity Caves -4/Factory (discovered 8 exits: *Res x3 / Upp x2 / Ext x2 / Arm) -4/Waste -4/Factory (discovered 5 exits: *Upp x2 / *Ext x2 / Arm) -4/Extension (discovered 2 exits: *Res / *Cet) -4/Cetus (discovered 2 exits: *Res / *Arc) -4/Archives (discovered 3 exits: *Res / *Hub x2) -4/Hub_04(d) (discovered 4 exits: *Res x4) -3/Research (discovered 4 exits: *Res x2 / *Qua x2) -3/Quarantine -2/Research (discovered 3 exits: *Acc x2 / *Tes) -2/Testing (discovered 3 exits: *Acc / *Sec / *Frg) -2/Protoforge -1/Access -1/Command (discovered 2 exits: Sur x2) By MAIN.C's Side History --------- Turn | Location | Event 12 | -11/Scrapyard | Discovered new exit (range 3) 43 | -11/Scrapyard | Entered Materials 44 | -10/Materials | Met a group of wandering Federalists 203 | -10/Materials | Discovered new exit (range 14) 304 | -10/Materials | Build established: Mutant 337 | -10/Materials | Discovered new exit (range 10) 383 | -10/Materials | Discovered new exit (range 5) 808 | -10/Materials | Core integrity fell below 50% 902 | -10/Materials | Discovered new exit (range 15) 966 | -10/Materials | Identified exit to Materials 1001 | -10/Materials | Loaded intel: 11 interactive machine locations 1045 | -10/Materials | Identified exit to Subcaves 1045 | -10/Materials | Learned location of 1 exit from Materials 1065 | -10/Materials | Identified exit to Mines 1085 | -10/Materials | Learned location of 1 exit from Storage 1113 | -10/Materials | Learned location of 1 exit from Recycling 1746 | -10/Materials | Entered Subcaves 1747 | -10/Subcaves | Continued accompanying wandering Federalists (3) 1747 | -10/Subcaves | Approached by a straggling Scientist 1747 | -10/Subcaves | Identified exit to Recycling 1787 | -10/Subcaves | Learned location of Zion (-7) 1787 | -10/Subcaves | Met a Zionite searching for "candidates" 1809 | -10/Subcaves | Shifting Twisted Machinery released Mak. Spear 1853 | -10/Subcaves | Scientist uncovered a shortcut to Scraptown 1969 | -10/Subcaves | Wandering Federalist uncovered a shortcut to Scraptown 2197 | -10/Subcaves | Shifting Twisted Machinery released Sub. Shrapnel Launcher 2198 | -10/Subcaves | Shifting Twisted Machinery released Sub. Beam Cannon 2294 | -10/Subcaves | Build established: Scavenger-Mutant 2499 | -10/Subcaves | Ambushed by Subdwellers from Twisted Machinery 2658 | -10/Subcaves | Build established: Mutant 4173 | -10/Subcaves | Discovered new exit (range 9) 4188 | -10/Subcaves | A swath of the cavern ceiling suddenly collapsed 4249 | -10/Subcaves | Core integrity fell below 20% 4528 | -10/Subcaves | Visited 4L-MR0's lab 4546 | -10/Subcaves | Found Prototype Flight Unit 4764 | -10/Subcaves | Entered Materials 4764 | -8/Materials | Evolved 4 slots: Propulsion x3, Utility x1 4765 | -8/Materials | Identified exit to Factory 6069 | -8/Materials | Discovered exit to Factory (range 9) 6193 | -8/Materials | Build established: Scavenger-Mutant 6394 | -8/Materials | Garrison activated, responded to threat 6979 | -8/Materials | Identified exit to Garrison 6979 | -8/Materials | Entered Garrison 7003 | -8/Garrison | Triggered checkpoint 7059 | -8/Garrison | Discovered new exit (range 5) 7131 | -8/Garrison | Triggered checkpoint 7218 | -8/Garrison | Garrison Relay disabled 7395 | -8/Garrison | Triggered checkpoint 7641 | -8/Garrison | Discovered new exit (range 12) 7685 | -8/Garrison | Triggered checkpoint 7725 | -8/Garrison | Garrison Relay disabled 7787 | -8/Garrison | Triggered checkpoint 7871 | -8/Garrison | Discovered new exit (range 8) 7922 | -8/Garrison | Garrison Relay disabled 7924 | -8/Garrison | Garrison Relay disabled 7926 | -8/Garrison | Garrison Relay disabled 7930 | -8/Garrison | Garrison Relay disabled 8041 | -8/Garrison | Triggered checkpoint 8076 | -8/Garrison | Garrison Relay disabled 8150 | -8/Garrison | Core integrity fell below 50% 8280 | -8/Garrison | Lost 3 parts (3n) 8315 | -8/Garrison | Rescued HV-R5K 8552 | -8/Garrison | Entered Materials 8552 | -8/Materials | Accompanied by 4 allies (HV-R5K) 8649 | -8/Materials | Identified exit to Garrison 8658 | -8/Materials | Entered Garrison 8658 | -8/Garrison | Accompanied by 4 allies (HV-R5K) 8721 | -8/Garrison | Triggered checkpoint 8816 | -8/Garrison | Triggered checkpoint 8862 | -8/Garrison | Garrison Relay disabled 8884 | -8/Garrison | Discovered exit to Factory (range 66) 8884 | -8/Garrison | Discovered exit to Factory (range 95) 8884 | -8/Garrison | Discovered exit to Factory (range 15) 9179 | -8/Garrison | Garrison Relay disabled 9179 | -8/Garrison | Garrison Relay disabled 9182 | -8/Garrison | Garrison Relay disabled 9264 | -8/Garrison | Triggered checkpoint 9374 | -8/Garrison | Garrison Relay disabled 9380 | -8/Garrison | Triggered checkpoint 9500 | -8/Garrison | Triggered checkpoint 9550 | -8/Garrison | Triggered checkpoint 9567 | -8/Garrison | Learned Factory security intel 9620 | -8/Garrison | Garrison Relay disabled 9634 | -8/Garrison | Triggered checkpoint 9699 | -8/Garrison | Entered Factory 9699 | -7/Factory | Accompanied by 1 ally (HV-R5K) 9699 | -7/Factory | Evolved 2 slots: Utility x1, Weapon x1 10373 | -7/Factory | Cargo convoy interrupted 10483 | -7/Factory | Lost 4 allies 10543 | -7/Factory | Discovered new exit (range 10) 10569 | -7/Factory | Lost 3 allies 11876 | -7/Factory | Identified exit to Factory 12099 | -7/Factory | First assault squad dispatched 12762 | -7/Factory | Sucked down chute 12762 | -7/Factory | Entered Waste 12762 | -7/Waste | Met up with 3 allies sucked down the chute earlier 12777 | -7/Waste | EMP discharged 12779 | -7/Waste | Identified Flightbrick 12780 | -7/Waste | Attached Flightbrick, gained temporary slots: Utility x3 12789 | -7/Waste | Spotted C-40 Crusher 12793 | -7/Waste | Spotted C-40 Crusher 12802 | -7/Waste | Spotted C-40 Crusher 12802 | -7/Waste | Spotted C-40 Crusher 12802 | -7/Waste | Spotted C-40 Crusher 12848 | -7/Waste | Spotted C-40 Crusher 12861 | -7/Waste | Discovered new exit (range 10) 12864 | -7/Waste | Identified exit to Factory 12864 | -7/Waste | Entered Factory 13050 | -7/Factory | Build established: Mutant 13086 | -7/Factory | Discovered exit to Factory (range 16) 13480 | -7/Factory | Identified exit to Lower Caves 13729 | -7/Factory | Discovered exit to Factory (range 9) 13751 | -7/Factory | Entered Lower Caves 13757 | -7/Lower Caves | Met a Warlord Commander 13758 | -7/Lower Caves | Entered an active Warlord outpost 13758 | -7/Lower Caves | Learned location of Warlord (-5) 13759 | -7/Lower Caves | Warlord Commander delivered Encrypted Comm Array 13760 | -7/Lower Caves | Found Encrypted Comm Array 13769 | -7/Lower Caves | Learned Factory terminal intel 13769 | -7/Lower Caves | Learned Factory garrison access intel 13781 | -7/Lower Caves | Build established: Hacker-Scout 13790 | -7/Lower Caves | Encountered a Warlord checkpoint 13796 | -7/Lower Caves | Learned Factory non-interactive machine intel 13864 | -7/Lower Caves | Discovered new exit (range 7) 13880 | -7/Lower Caves | Identified exit to Lower Caves 14045 | -7/Lower Caves | Learned Factory stockpile data 14048 | -7/Lower Caves | Entered another Lower Caves area 14093 | -7/Lower Caves | Discovered exit to Factory (range 4) 14169 | -7/Lower Caves | Attracted the attention of an 0b10 checkpoint 14193 | -7/Lower Caves | Learned location of 1 exit from Proximity Caves 14194 | -7/Lower Caves | Learned Factory terminal intel 14212 | -7/Lower Caves | Entered an active Warlord outpost 14216 | -7/Lower Caves | Learned location of Extension (-4) 14216 | -7/Lower Caves | Learned Extension emergency access door positions 14291 | -7/Lower Caves | Discovered new exit (range 8) 14293 | -7/Lower Caves | Identified exit to Zion 14359 | -7/Lower Caves | Entered Zion 14402 | -7/Zion | System corruption cleaned by Quarantine Array 14407 | -7/Zion | System corruption cleaned by Quarantine Array 14421 | -7/Zion | Discovered new exit (range 9) 14461 | -7/Zion | Learned Factory recycling unit intel 14494 | -7/Zion | Found Prototype Processor 14496 | -7/Zion | Found Prototype Processor 14498 | -7/Zion | Found Prototype Processor 14499 | -7/Zion | Found Prototype Processor 14501 | -7/Zion | Found Prototype Processor 14502 | -7/Zion | Found Prototype Processor 14504 | -7/Zion | Found Prototype Hackware 14520 | -7/Zion | Identified Exp. Terrain Scan Processor 14545 | -7/Zion | Identified Exp. Signal Interpreter (x2) 14552 | -7/Zion | Identified Exp. Target Analyzer 14566 | -7/Zion | Identified Exp. Hacking Suite 14600 | -7/Zion | Identified Exp. Armor Integrity Analyzer 14608 | -7/Zion | Identified Exp. Melee Analysis Suite 14667 | -7/Zion | Found Prototype Device 14667 | -7/Zion | Identified Phasing AFG 14699 | -7/Zion | Gained Derelict followers 14710 | -7/Zion | Learned location of Quarantine (-3) 14721 | -7/Zion | Met Imprinter 14746 | -7/Zion | Found CR-A16's Pointy Stick 14867 | -7/Zion | Identified exit to Proximity Caves 15056 | -7/Zion | Entered Proximity Caves 15056 | -6/Proximity Caves | Accompanied by 5 allies 15529 | -6/Proximity Caves | Learned Factory emergency access door positions 15820 | -6/Proximity Caves | Learned 4 Factory zone layouts 15883 | -6/Proximity Caves | Entered Factory 15883 | -6/Factory | Accompanied by 2 allies 15883 | -6/Factory | Evolved 2 slots: Utility x2 15884 | -6/Factory | Identified exit to Factory 15887 | -6/Factory | Loaded intel: 240 non-interactive machine locations 15888 | -6/Factory | Loaded intel: 26 terminal locations 15889 | -6/Factory | Loaded intel: 8 recycling unit locations 15890 | -6/Factory | Loaded intel: 4 garrison access locations 16072 | -6/Factory | Discovered exit to Factory (range 4) 16091 | -6/Factory | Discovered new exit (range 12) 16095 | -6/Factory | Identified exit to Lower Caves 16367 | -6/Factory | Learned Factory stockpile data 16423 | -6/Factory | Spotted B-75 Beast 16437 | -6/Factory | Learned Hub_04(d) trap positions 16458 | -6/Factory | Learned 2 Upper Caves zone layouts 16469 | -6/Factory | Learned location of 1 exit from Proximity Caves 16470 | -6/Factory | Learned 2 Proximity Caves zone layouts 16485 | -6/Factory | Revealed the true nature of CR-A16's Pointy Stick 16488 | -6/Factory | Destroyed B-75 Beast 16497 | -6/Factory | Learned location of Proximity Caves (-3) 16588 | -6/Factory | Entered Lower Caves 16588 | -6/Lower Caves | Accompanied by 1 ally 16638 | -6/Lower Caves | Learned Factory trap positions 16885 | -6/Lower Caves | Spotted B-75 Beast 16892 | -6/Lower Caves | Destroyed B-75 Beast 16896 | -6/Lower Caves | Found DCF Scrap (13 items) 16992 | -6/Lower Caves | Discovered new exit (range 9) 17164 | -6/Lower Caves | Identified exit to Lower Caves 17164 | -6/Lower Caves | Entered another Lower Caves area 17171 | -6/Lower Caves | Discovered exit to Factory (range 9) 17172 | -6/Lower Caves | Learned 8 Factory zone layouts 17466 | -6/Lower Caves | Discovered new exit (range 4) 17467 | -6/Lower Caves | Identified exit to Data Miner 17468 | -6/Lower Caves | Entered Data Miner 17468 | -6/Data Miner | Discovered new exit (range 6) 17474 | -6/Data Miner | Met Data Miner 17484 | -6/Data Miner | Learned location of Section 7 (-2) 17484 | -6/Data Miner | Acquired the access code to Warlord's prototype stash 17488 | -6/Data Miner | Received God Mode back door access code from Data Miner 17496 | -6/Data Miner | Identified exit to Proximity Caves 17513 | -6/Data Miner | Data Conduit disabled 17624 | -6/Data Miner | Entered Proximity Caves 17626 | -5/Proximity Caves | Spotter reported a threat 17627 | -5/Proximity Caves | Spotter reported a threat 17695 | -5/Proximity Caves | Learned Factory terminal intel 17772 | -5/Proximity Caves | Spotted B-75 Beast 17777 | -5/Proximity Caves | Destroyed B-75 Beast 17828 | -5/Proximity Caves | Spotter reported a threat 17934 | -5/Proximity Caves | Spotter reported a threat 18021 | -5/Proximity Caves | Entered Factory 18021 | -5/Factory | Evolved 2 slots: Power x1, Propulsion x1 18022 | -5/Factory | Identified exit to Factory 18023 | -5/Factory | Loaded intel: 127 trap records 18025 | -5/Factory | Loaded intel: 26 terminal locations 18106 | -5/Factory | Identified exit to DSF 18126 | -5/Factory | Spotted B-75 Beast 18131 | -5/Factory | Destroyed B-75 Beast 18302 | -5/Factory | Identified exit to Upper Caves 18321 | -5/Factory | Search patrols dispatched 18621 | -5/Factory | Search patrols dispatched 18825 | -5/Factory | Build established: Wizard-Scout 18921 | -5/Factory | Search patrols dispatched 19158 | -5/Factory | Fabricated Tri-rail Accelerator? 19217 | -5/Factory | Entered Upper Caves 19254 | -5/Upper Caves | Build established: Hacker-Ninja 19298 | -5/Upper Caves | Spotted B-75 Beast 19328 | -5/Upper Caves | Destroyed B-75 Beast 19340 | -5/Upper Caves | Discovered new exit (range 14) 19343 | -5/Upper Caves | Identified exit to Upper Caves 19347 | -5/Upper Caves | Learned 8 Factory zone layouts 19350 | -5/Upper Caves | Entered another Upper Caves area 19355 | -5/Upper Caves | Discovered exit to Factory (range 9) 19363 | -5/Upper Caves | Encountered a Warlord checkpoint 19382 | -5/Upper Caves | Learned Factory interactive machine intel 19526 | -5/Upper Caves | Discovered new exit (range 5) 19583 | -5/Upper Caves | Identified exit to Warlord 19633 | -5/Upper Caves | Entered Warlord 19819 | -5/Warlord | Learned Factory garrison access intel 19819 | -5/Warlord | Learned 4 Research zone layouts 19819 | -5/Warlord | Learned 4 Research zone layouts 19819 | -5/Warlord | Learned 4 Command zone layouts 19819 | -5/Warlord | Learned Research stockpile data 19819 | -5/Warlord | Learned Testing stockpile data 19867 | -5/Warlord | Opened Warlord's prototype stash 19868 | -5/Warlord | Warlord's base attacked by MAIN.C 19878 | -5/Warlord | Found Prototype Hackware 19882 | -5/Warlord | Found Prototype Device 19882 | -5/Warlord | Identified Exp. Focal Shield 19886 | -5/Warlord | Found Prototype Processor 19886 | -5/Warlord | Identified Exp. Targeting Computer 19904 | -5/Warlord | Found Prototype Launcher 19906 | -5/Warlord | Found Prototype Energy Cannon 19906 | -5/Warlord | Identified Vortex Driver 19908 | -5/Warlord | Found Prototype Energy Cannon 19908 | -5/Warlord | Identified Vortex Cannon 19911 | -5/Warlord | Found Prototype Energy Gun 19911 | -5/Warlord | Identified Vortex Shotgun 19914 | -5/Warlord | Found Vortex Shotgun 19958 | -5/Warlord | Identified Vortex Catalyst Activator 20209 | -5/Warlord | Spotted Striker 20218 | -5/Warlord | Warlord forces counterattacked 20230 | -5/Warlord | Destroyed 15 combat bots 20251 | -5/Warlord | Spotted Executioner 20269 | -5/Warlord | Build established: Hacker-Scout 20315 | -5/Warlord | Found Exp. Core Analyzer 20326 | -5/Warlord | Lost 7 allies 20370 | -5/Warlord | Spotted Executioner 20372 | -5/Warlord | Spotted Striker 20403 | -5/Warlord | Destroyed Executioner 20431 | -5/Warlord | Lost 10 allies 20534 | -5/Warlord | Spotted Executioner 20543 | -5/Warlord | Warlord base infiltrated, sounded retreat 20544 | -5/Warlord | Destroyed Executioner 20548 | -5/Warlord | Found Exp. Targeting Computer 20563 | -5/Warlord | Met Warlord 20632 | -5/Warlord | Discovered new exit (range 9) 20633 | -5/Warlord | Identified exit to Proximity Caves 20634 | -5/Warlord | Entered Proximity Caves 20656 | -4/Proximity Caves | Spotted B-86 Titan 20667 | -4/Proximity Caves | Learned Research stockpile data 20980 | -4/Proximity Caves | Attracted the attention of an 0b10 checkpoint 21044 | -4/Proximity Caves | Learned location of 2 exits from Research 21095 | -4/Proximity Caves | Destroyed B-86 Titan 21498 | -4/Proximity Caves | Discovered exit to Factory (range 9) 21742 | -4/Proximity Caves | Entered Factory 21742 | -4/Factory | Evolved 2 slots: Propulsion x1, Utility x1 21743 | -4/Factory | Identified exit to Armory 21744 | -4/Factory | Identified exit to Research 21745 | -4/Factory | Loaded intel: 56 interactive machine locations 21746 | -4/Factory | Loaded intel: 28 terminal locations 21747 | -4/Factory | Loaded intel: 4 garrison access locations 21753 | -4/Factory | Discovered exit to Research (range 20) 21756 | -4/Factory | Identified exit to Upper Caves 21756 | -4/Factory | Identified exit to Extension 21811 | -4/Factory | Central database locked down 21866 | -4/Factory | Identified System Mapper 22132 | -4/Factory | Sucked down chute 22132 | -4/Factory | Entered Waste 22135 | -4/Waste | Spotted C-40 Crusher 22147 | -4/Waste | EMP discharged 22147 | -4/Waste | System corruption reached 10% 22148 | -4/Waste | Spotted C-40 Crusher 22148 | -4/Waste | Spotted C-40 Crusher 22148 | -4/Waste | Spotted C-40 Crusher 22157 | -4/Waste | Spotted C-40 Crusher 22157 | -4/Waste | Spotted C-40 Crusher 22158 | -4/Waste | Discovered new exit (range 14) 22182 | -4/Waste | Identified exit to Factory 22182 | -4/Waste | Entered Factory 22272 | -4/Factory | Spotted B-86 Titan 22297 | -4/Factory | Destroyed B-86 Titan 22509 | -4/Factory | Fabricated Adv. System Restoration Module? 22635 | -4/Factory | Spotted B-86 Titan 22638 | -4/Factory | Destroyed B-86 Titan 22693 | -4/Factory | Fabricated Exp. Propulsion Shielding? 22744 | -4/Factory | Fabricated Field Propulsion Array (x1) 22809 | -4/Factory | Fabricated Tri-rail Accelerator? 22980 | -4/Factory | Entered Extension 23164 | -4/Extension | Spotted B-86 Titan 23191 | -4/Extension | Rescued a captive Derelict 23193 | -4/Extension | Rescued a captive Derelict 23282 | -4/Extension | Rescued A7 23295 | -4/Extension | Rescued a captive Derelict 23495 | -4/Extension | Spotted B-86 Titan 23503 | -4/Extension | Build established: Commander-Scout 23509 | -4/Extension | Allies destroyed B-86 Titan 23515 | -4/Extension | Destroyed B-86 Titan 23550 | -4/Extension | Rescued a captive Derelict 23550 | -4/Extension | Rescued a captive Derelict 23606 | -4/Extension | Rescued a captive Derelict 23608 | -4/Extension | Rescued a captive Derelict 23625 | -4/Extension | Rescued a captive Derelict 23638 | -4/Extension | Rescued a captive Derelict 23639 | -4/Extension | Rescued a captive Derelict 23642 | -4/Extension | Rescued a captive Derelict 23644 | -4/Extension | Rescued a captive Derelict 23782 | -4/Extension | Discovered exit to Research (range 10) 23782 | -4/Extension | Discovered new exit (range 6) 23784 | -4/Extension | Identified exit to Cetus 23885 | -4/Extension | Entered Cetus 23885 | -4/Cetus | Accompanied by 16 allies (A7) 23890 | -4/Cetus | Acquired a Cetus Manufacturing Module code from A7 23891 | -4/Cetus | Spotted Cetus Guard 23894 | -4/Cetus | Spotted Cetus Guard 23895 | -4/Cetus | Destroyed Cetus Guard 23897 | -4/Cetus | Spotted Cetus Guard 23897 | -4/Cetus | Spotted Cetus Guard 23911 | -4/Cetus | Allies destroyed Cetus Guard 23915 | -4/Cetus | Allies destroyed Cetus Guard 23917 | -4/Cetus | Destroyed Cetus Guard 23934 | -4/Cetus | Started Cetus Manufacturing Module 23943 | -4/Cetus | Lost 3 allies 23959 | -4/Cetus | Manufactured an Enhanced Grunt 23979 | -4/Cetus | Escorted A7 to Cetus Mainframe 23984 | -4/Cetus | Manufactured an Enhanced Grunt 23986 | -4/Cetus | Discovered new exit (range 22) 23992 | -4/Cetus | Spotted Cetus Guard 23992 | -4/Cetus | Spotted Cetus Guard 23995 | -4/Cetus | Spotted Cetus Guard 23996 | -4/Cetus | Spotted Cetus Guard 23999 | -4/Cetus | Destroyed Cetus Guard 24003 | -4/Cetus | Destroyed Cetus Guard 24007 | -4/Cetus | Destroyed Cetus Guard 24009 | -4/Cetus | Manufactured an Enhanced Grunt 24010 | -4/Cetus | Allies destroyed Cetus Guard 24014 | -4/Cetus | Identified exit to Archives 24034 | -4/Cetus | Manufactured an Enhanced Grunt 24059 | -4/Cetus | Manufactured an Enhanced Grunt 24115 | -4/Cetus | Discovered exit to Research (range 22) 24141 | -4/Cetus | Entered Archives 24141 | -4/Archives | Accompanied by 18 allies (A7) 24146 | -4/Archives | Received a hacking code to weaken MAIN.C 24210 | -4/Archives | Lost 3 allies 24240 | -4/Archives | Discovered new exit (range 22) 24241 | -4/Archives | Discovered new exit (range 22) 24243 | -4/Archives | Discovered exit to Research (range 22) 24787 | -4/Archives | Identified exit to Hub_04(d) 24858 | -4/Archives | Entered Hub_04(d) 24858 | -4/Hub_04(d) | Accompanied by 14 allies 24859 | -4/Hub_04(d) | Loaded intel: 18 trap records 25081 | -4/Hub_04(d) | Spotted B-86 Titan 25108 | -4/Hub_04(d) | First assault squad dispatched 25109 | -4/Hub_04(d) | Network Hub disabled 25145 | -4/Hub_04(d) | Spotted Lightning 25157 | -4/Hub_04(d) | Network Hub disabled 25161 | -4/Hub_04(d) | Entered Research 25161 | -3/Research | Evolved 2 slots: Utility x2 25162 | -3/Research | Identified exit to Research 25162 | -3/Research | Identified exit to Quarantine 25208 | -3/Research | Fabricated Impulse Thruster Array? 25291 | -3/Research | Repaired Lgt. Fission Core+ 25361 | -3/Research | Revision forces began assault on 0b10 25382 | -3/Research | Repaired Tri-rail Accelerator 25391 | -3/Research | Met up with Revision 17++ 25494 | -3/Research | Central database locked down 25518 | -3/Research | Spotted B-86 Titan 25524 | -3/Research | Destroyed B-86 Titan 25591 | -3/Research | Build established: Hacker-Scout 25650 | -3/Research | Discovered exit to Quarantine (range 17) 25777 | -3/Research | Learned 4 Research zone layouts 25783 | -3/Research | Repaired Exp. Propulsion Shielding 25861 | -3/Research | Research terminal network offline 25934 | -3/Research | Spotted B-86 Titan 25952 | -3/Research | Destroyed B-86 Titan 26166 | -3/Research | Spotted Striker 26194 | -3/Research | Lost 5 allies 26622 | -3/Research | Spotted Striker 26675 | -3/Research | Spotted Striker 26681 | -3/Research | Destroyed Striker 26687 | -3/Research | Destroyed Striker 26766 | -3/Research | Spotted Striker 26771 | -3/Research | Spotted Striker 26779 | -3/Research | Destroyed Striker 26781 | -3/Research | Destroyed Striker 26837 | -3/Research | Spotted Striker 26942 | -3/Research | Entered Quarantine 27078 | -3/Quarantine | Found Alien Artifact 27167 | -3/Quarantine | Identified Core Reset Matrix 27350 | -3/Quarantine | Discovered exit to Research (range 18) 27690 | -3/Quarantine | Found Alien Artifact 27694 | -3/Quarantine | Unchained authorized (CL-0N3) 27716 | -3/Quarantine | Entered Research 27716 | -2/Research | Warlord forces began assault on 0b10 27716 | -2/Research | Evolved 2 slots: Propulsion x1, Utility x1 27717 | -2/Research | Identified exit to Access 27741 | -2/Research | Distinguished unit "Cat Herders" dispatched to help 27741 | -2/Research | Distinguished unit "Lucky Slug" dispatched to help 27790 | -2/Research | Met up with Warlord 27826 | -2/Research | Research machine network offline 27833 | -2/Research | Found Prototype Launcher 27849 | -2/Research | Lost 4 allies 27921 | -2/Research | Discovered exit to Access (range 10) 27923 | -2/Research | Lost 7 allies 28002 | -2/Research | Spotted Executioner 28002 | -2/Research | Spotted Executioner 28125 | -2/Research | Spotted Striker 28186 | -2/Research | Spotted B-90 Cyclops 28189 | -2/Research | Destroyed B-90 Cyclops 28198 | -2/Research | Spotted Striker 28200 | -2/Research | Spotted B-90 Cyclops 28204 | -2/Research | Destroyed B-90 Cyclops 28262 | -2/Research | Discovered new exit (range 11) 28264 | -2/Research | Identified exit to Testing 28293 | -2/Research | Spotted Executioner 28293 | -2/Research | Spotted Striker 28345 | -2/Research | Borebot progress halted 28530 | -2/Research | Spotted B-90 Cyclops 28543 | -2/Research | Destroyed B-90 Cyclops 28584 | -2/Research | Identified Ragnarok Missile Launcher 28887 | -2/Research | Warlord invited to help at Command 28887 | -2/Research | Given Cave Seal Controls access code 28920 | -2/Research | Spotted Executioner 28934 | -2/Research | Spotted Executioner 28939 | -2/Research | Spotted Executioner 28939 | -2/Research | Spotted Striker 28944 | -2/Research | Entered Testing 28969 | -2/Testing | Found Prototype Device 28969 | -2/Testing | Identified Exp. Hardlight Generator 28972 | -2/Testing | Protovariant out of control (PG-YD6HW3O4PG) 29016 | -2/Testing | Found Prototype Processor 29032 | -2/Testing | Identified Spectral Analyzer 29086 | -2/Testing | Spotted PG-YD6HW3O4PG 29128 | -2/Testing | Unchained authorized (CL-0N3) 29211 | -2/Testing | Found Prototype Energy Gun 29211 | -2/Testing | Identified Tachyon Dispersion Ray 29391 | -2/Testing | TS-FDK(s) reconstituted as S7 Guard 29393 | -2/Testing | Spotted S7 Guard 29403 | -2/Testing | Destroyed S7 Guard 29403 | -2/Testing | S7 Guard reconstituted as CL-0N3 29415 | -2/Testing | Destroyed CL-0N3 29416 | -2/Testing | Extracted schematics, analyses from CL-0N3's data core 29420 | -2/Testing | Found ID Mask 29433 | -2/Testing | Lost 4 allies 29465 | -2/Testing | Spotted Striker 29500 | -2/Testing | Repaired Tri-rail Accelerator 29515 | -2/Testing | Spotted Striker 29555 | -2/Testing | Discovered exit to Access (range 10) 29661 | -2/Testing | Unchained authorized (DW-4LL) 29694 | -2/Testing | Repaired Tri-rail Accelerator 29813 | -2/Testing | DW-4LL burst out of a wall 29841 | -2/Testing | Learned Access emergency access door positions 29883 | -2/Testing | Destroyed DW-4LL 29888 | -2/Testing | Found ID Mask 29981 | -2/Testing | Learned Access emergency access door positions 30036 | -2/Testing | Identified exit to Protoforge 30079 | -2/Testing | Identified exit to Section 7 30193 | -2/Testing | Learned Access non-interactive machine intel 30200 | -2/Testing | ID Mask engaged 30237 | -2/Testing | Found Prototype Protection 30260 | -2/Testing | Spotted Fortress 30261 | -2/Testing | ID Mask no longer valid 30276 | -2/Testing | Identified Hvy. Regenerative Plating 30277 | -2/Testing | Entered Protoforge 30302 | -2/Protoforge | Spotted B-90 Cyclops 30324 | -2/Protoforge | Superfortress began startup sequence 30325 | -2/Protoforge | Destroyed B-90 Cyclops 30329 | -2/Protoforge | Discovered exit to Access (range 17) 30354 | -2/Protoforge | ID Mask engaged 30371 | -2/Protoforge | Spotted V720-b 30371 | -2/Protoforge | Spotted V156-h 30371 | -2/Protoforge | Spotted V875-d 30371 | -2/Protoforge | Spotted V288-j 30375 | -2/Protoforge | ID Mask no longer valid 30397 | -2/Protoforge | Found Prototype Device 30398 | -2/Protoforge | Identified Crosscalibrator 30401 | -2/Protoforge | Spotted Immortal 30401 | -2/Protoforge | Spotted Immortal 30429 | -2/Protoforge | Destroyed Immortal 30433 | -2/Protoforge | Destroyed Immortal 30436 | -2/Protoforge | Spotted Decapitator 30436 | -2/Protoforge | Spotted Decapitator 30436 | -2/Protoforge | Spotted Decapitator 30436 | -2/Protoforge | Spotted Decapitator 30447 | -2/Protoforge | Found Cep. Rapid Grenade Launcher 30449 | -2/Protoforge | Found Cep. Rapid Grenade Launcher 30464 | -2/Protoforge | Destroyed Decapitator 30464 | -2/Protoforge | Destroyed Decapitator 30464 | -2/Protoforge | Destroyed Decapitator 30464 | -2/Protoforge | Destroyed Decapitator 30522 | -2/Protoforge | Destroyed 7 combat bots 30564 | -2/Protoforge | Found Exp. Force Field 30587 | -2/Protoforge | Forge Plexus network access discovered 30609 | -2/Protoforge | Build established: Hacker-Sprinter 30610 | -2/Protoforge | Spotted Decapitator 30610 | -2/Protoforge | Spotted Decapitator 30610 | -2/Protoforge | Spotted V149-b 30610 | -2/Protoforge | Spotted V614-t 30626 | -2/Protoforge | Found Cep. NT7 Matterbank 30628 | -2/Protoforge | Found Cep. Antigrav Storage Unit 30630 | -2/Protoforge | Found Cep. Chromion Battery 30684 | -2/Protoforge | Spotted Decapitator 30684 | -2/Protoforge | Spotted Decapitator 30684 | -2/Protoforge | Spotted Decapitator 30689 | -2/Protoforge | Spotted Decapitator 30690 | -2/Protoforge | Destroyed Decapitator 30690 | -2/Protoforge | Destroyed Decapitator 30690 | -2/Protoforge | Destroyed Decapitator 30690 | -2/Protoforge | Destroyed Decapitator 30739 | -2/Protoforge | Spotted V209-p 30751 | -2/Protoforge | Spotted Hotshot 30770 | -2/Protoforge | System corruption reached 10% 30770 | -2/Protoforge | Destroyed V209-p 30777 | -2/Protoforge | Destroyed Hotshot 30782 | -2/Protoforge | Spotted Hotshot 30785 | -2/Protoforge | Destroyed Hotshot 30786 | -2/Protoforge | Spotted Hotshot 30787 | -2/Protoforge | Destroyed Hotshot 30788 | -2/Protoforge | Spotted Hotshot 30790 | -2/Protoforge | Destroyed Hotshot 30811 | -2/Protoforge | Destroyed 9 combat bots 30811 | -2/Protoforge | Found Cep. Gyrokinetic System 30841 | -2/Protoforge | Found Faulty Cep. Combat Aerolev Unit 30845 | -2/Protoforge | Found Faulty Cep. Combat Aerolev Unit 30848 | -2/Protoforge | Found Faulty Cep. Gyrokinetic System 30850 | -2/Protoforge | Found Cep. Combat Aerolev Unit 30863 | -2/Protoforge | Found Cep. Gyrokinetic System 30885 | -2/Protoforge | Spotted Decapitator 30885 | -2/Protoforge | Spotted Decapitator 30885 | -2/Protoforge | Spotted Decapitator 30896 | -2/Protoforge | Destroyed Decapitator 30898 | -2/Protoforge | Spotted Decapitator 30905 | -2/Protoforge | Destroyed Decapitator 30905 | -2/Protoforge | Destroyed Decapitator 30908 | -2/Protoforge | Destroyed Decapitator 31028 | -2/Protoforge | Found Cep. Zero-point Core 31031 | -2/Protoforge | Found Faulty Cep. Zero-point Core 31116 | -2/Protoforge | Spotted Immortal 31116 | -2/Protoforge | Spotted Immortal 31125 | -2/Protoforge | Spotted V438-g 31129 | -2/Protoforge | Found Exp. Kinecellerator 31181 | -2/Protoforge | Found Faulty Cep. Plasma Driver 31182 | -2/Protoforge | Found Faulty Cep. Plasma Driver 31198 | -2/Protoforge | Found Cep. Heavy Railcannon 31205 | -2/Protoforge | Found Faulty Cep. Heavy Railcannon 31244 | -2/Protoforge | Destroyed AP7-3 31268 | -2/Protoforge | Spotted AP7-3 31282 | -2/Protoforge | Destroyed AP7-3 31326 | -2/Protoforge | Scanned by Researcher 31349 | -2/Protoforge | Found Cep. Cloak Mesh 31351 | -2/Protoforge | Found Cep. Cloak Mesh 31353 | -2/Protoforge | Found Cep. Impact Drone Bay 31356 | -2/Protoforge | Found Cep. Core Analysis Suite 31417 | -2/Protoforge | Additional patrols dispatched to research labs 31422 | -2/Protoforge | Found Cep. Navigation Harness 31439 | -2/Protoforge | Found Transdimensional Reconstructor 31527 | -2/Protoforge | First assault squad dispatched 31594 | -2/Protoforge | Found Cep. Matter Streamer 31637 | -2/Protoforge | Build established: Sprinter 31731 | -2/Protoforge | System corruption reached 30% 31765 | -2/Protoforge | Found Cep. NT7 Matterbank 31778 | -2/Protoforge | Found Cep. Weapon Articulator 31862 | -2/Protoforge | Entered Access 31862 | -1/Access | Evolved 2 slots: Power x1, Utility x1 31864 | -1/Access | Loaded intel: 77 non-interactive machine locations 31865 | -1/Access | Destroyed 15 combat bots 32011 | -1/Access | Unchained authorized (6S-H0T) 32112 | -1/Access | First assault squad dispatched 32196 | -1/Access | Allies destroyed 6S-H0T 32198 | -1/Access | Found Prototype Ballistic Gun 32198 | -1/Access | Identified 6S-H0T's Six Shooter 32203 | -1/Access | Found 6S-H0T's SS Cartridge 32401 | -1/Access | Discovered new exit (range 9) 32558 | -1/Access | Unchained authorized (QV-33N) 32902 | -1/Access | Destroyed 8 combat bots 32944 | -1/Access | Destroyed 7 combat bots 33042 | -1/Access | Spotted B-99 Colossus 33259 | -1/Access | Energy Cycler disabled 33326 | -1/Access | Entered Command 33826 | -1/Command | First assault squad dispatched 34195 | -1/Command | Spotted Executioner 34205 | -1/Command | Destroyed Executioner 34207 | -1/Command | Spotted B-99 Colossus 34211 | -1/Command | Found Exp. Core Analyzer 34289 | -1/Command | Spotted Combat Programmer 34375 | -1/Command | Met MAIN.C 34407 | -1/Command | MAIN.C activated Command garrisons 34410 | -1/Command | Destroyed MAIN.C Shell 34412 | -1/Command | Surrendered to MAIN.C 34412 | -1/Command | Loaded intel: 64 machine locations 34412 | -1/Command | Loaded intel: 108 trap records 34412 | -1/Command | Identified exit to Surface 34412 | -1/Command | Discovered exit to Surface (range 41) 34412 | -1/Command | Discovered exit to Surface (range 86) 34436 | -1/Command | Found Exp. Hardlight Generator 34438 | -1/Command | Found Exp. Armor Integrity Analyzer 34441 | -1/Command | Found Exp. Force Field 34444 | -1/Command | Found Exp. System Purifier 34449 | -1/Command | Found Zero-point Reactor 34546 | -1/Command | MAIN.C activated Command garrisons 34586 | -1/Command | Unknown forces attacked Command 34586 | -1/Command | Spotted EQ-000 34586 | -1/Command | Spotted EQ-005 34586 | -1/Command | Spotted EQ-004 34586 | -1/Command | Spotted EQ-002 34586 | -1/Command | Spotted EQ-001 34586 | -1/Command | Destroyed EQ-005 34588 | -1/Command | Spotted EQ-003 34592 | -1/Command | Destroyed EQ-004 34595 | -1/Command | Spotted EQ-006 34606 | -1/Command | Destroyed EQ-000 34609 | -1/Command | Destroyed EQ-003 34628 | -1/Command | Spotted EQ-010 34641 | -1/Command | Destroyed EQ-010 34650 | -1/Command | Spotted EQ-009 34666 | -1/Command | Spotted EQ-023 34666 | -1/Command | Spotted EQ-020 34666 | -1/Command | Spotted EQ-019 34666 | -1/Command | Spotted EQ-018 34689 | -1/Command | Destroyed EQ-019 34704 | -1/Command | Spotted EQ-027 34717 | -1/Command | Spotted EQ-032 34723 | -1/Command | Spotted EQ-030 34724 | -1/Command | Lost 4 parts (2u2w) 34733 | -1/Command | Destroyed EQ-032 34773 | -1/Command | Spotted EQ-039 34773 | -1/Command | Spotted EQ-050 34773 | -1/Command | Spotted EQ-040 34773 | -1/Command | Spotted EQ-038 34779 | -1/Command | Destroyed EQ-039 34784 | -1/Command | Destroyed EQ-050 34797 | -1/Command | Spotted EQ-043 34804 | -1/Command | Destroyed EQ-043 34809 | -1/Command | Spotted EQ-055 34812 | -1/Command | Spotted EQ-048 34817 | -1/Command | Spotted EQ-056 34825 | -1/Command | Spotted EQ-022 34826 | -1/Command | Spotted EQ-033 34830 | -1/Command | Destroyed EQ-022 34832 | -1/Command | Spotted EQ-041 34833 | -1/Command | Spotted EQ-036 34837 | -1/Command | Destroyed EQ-036 34851 | -1/Command | Spotted EQ-059 34859 | -1/Command | Destroyed EQ-055 34876 | -1/Command | Spotted EQ-026 34892 | -1/Command | Spotted EQ-060 34892 | -1/Command | Spotted EQ-061 34898 | -1/Command | Destroyed EQ-060 34904 | -1/Command | All MAIN.C guards destroyed 34904 | -1/Command | Destroyed EQ-061 34906 | -1/Command | Spotted EQ-062 34907 | -1/Command | Destroyed EQ-058 34908 | -1/Command | Spotted EQ-046 34909 | -1/Command | Spotted EQ-045 34914 | -1/Command | Attackers retreated from Command 34915 | *** | Fortifying 0b10! Last Messages --------------- 34911_ Slug penetrates Reinforced Barrier. 34911_ Railslug penetrates EQ-045. 34911_ EQ-045 knocked back. 34911_ Railslug penetrates Reinforced Barrier. 34912_ Slug penetrates EQ-045. 34912_ Slug penetrates MAIN.C. 34913_ EQ-045 destroyed. 34913_ EQ-062 destroyed. 34913_ Railslug penetrates EQ-046. 34913_ EQ-046 knocked back. 34914_ ALERT: Enemy forces retreating. MAIN.C: I admit your assistance was pivotal here. It looks like I was right to trust you. This attack appears to have been designed to merely test our defenses, although it was nearly effective enough to force me to take the conflict to the next level. Investigating the origins of these bots should be one of our highest priorities... [Achievement: Stronghold] Map ----- +----------------------------------------------------+ | #??????????????????????????????#?#?#?? | | #??????????????????????????????#?#?#?? | | ###??????????????????????????????#?#?#?? | | #????????????????????????????????#?#?#?? | | #????????????????????????????????#?#?#?? | | #????????????????????????????????#?#?#?? | | #????????????????????????????????#?#?#?? | | #????????????????????????????????#?#?#?? | | #????????????????????????????????#?#?#?? | | #?###########################????#?#?#?? | | #?#?????????????????????????#????#?#?#?? | | ^ #?#?#######################?#????#?#?#?? | | % #?#?#""""""" """% ############## | | % "" #?#?#"" " % % #?#??????????? | | ^ ^ """#?#?#""" " % ############## | | % T"#?#?#""" %"""" = %% ! | | """#?#?#" "% " % % | | "" #?#?#"" """ | | #?#?#" " " % ############## | | #?#?# * % % #?#??????????? | | % #?#?# ############## | | =% ###?# % #?#????#?#?#?? | | % = "##?# % #?#????#?#?#?? | | !%*=###?# h % #?#????#?#?#?? | | #!% *###?# ] % #?#????#?#?#?? | | %[=!% #?#% @ #?#????#?#?#?? | | ! ####= #?#????#?#?#?? | | % % %%% M #?#????#?#?#?? | | % % % #?#????#?#?#?? | | !! % % #?#????#?#?#?? | | *%!% #### %#?#????#?#?#?? | | %%=! #?# " #?#????#?#?#?? | | %% #####?# %%#?#????#?#?#?? | | # #???#?#######################?#????#?#?#?? | | # #???#?????????????????????????#????#?#?#?? | | ######% #???###########################????#?#?#?? | | ?????# #??????????????????????????????????#?#?#?? | | ?????# #??????????????????????????????????#?#?#?? | | ###### #??????????????????????????????????#?#?#?? | | #??????????????????????????????????#?#?#?? | | ###????????????????????????????????#?#?#?? | | "#????????????????????????????????#?#?#?? | | ""#????????????????????????????????#?#?#?? | | ""#????????????????????????????????#?#?#?? | | ! ""#????????????????????????????????#?#?#?? | | ^ [ ""#????????????????????????????????#?#?#?? | | ^ T"#????????????????????????????????#?#?#?? | | ""#????????????????????????????????#?#?#?? | | ""#????????????????????????????????#?#?#?? | | !! ""#????????????????????????????????#?#?#?? | +----------------------------------------------------+ Best States ------------- Heat Dissipation 88 Energy Generation 75 Energy Capacity 2440 Matter Stores 300 Matter Capacity 300 Sight Range 22 Robot Scan Range 18 Terrain Scan Density 10 ECM Strength 1 Jamming Range 14 Cloak Strength 9 Armor Coverage 825 Resistance: KI 30 Propulsion Shielding 90 Point Defense Rating 480 Weapon Cycling 25 Evasion (%) 77 Targeting Accuracy 32 Core Analysis 15 Armor Integrity Analysis 50 Recoil Reduction 5 Particle Charging 25 Kinecelleration 66 Offensive Hacking 36 Defensive Hacking 34 Authchip Count 2 Item Schematics ----------------- Imp. Flight Unit | -7/Factory | Scanalyzed Exp. Propulsion Shielding | -6/Factory | Hacked Combat Drone Bay | -6/Data Miner | Free Lgt. Regenerative Plating | -6/Data Miner | Free Cld. Gravmag System | -6/Data Miner | Free Imp. Matter Compressor | -6/Data Miner | Free Hvy. Gatling Laser | -6/Data Miner | Free Imp. Antigrav System | -6/Data Miner | Free Imp. Force Field | -6/Data Miner | Free Centrium Wheel | -6/Data Miner | Free Hvy. Gauss Cannon | -6/Data Miner | Free Adv. Shield Generator | -6/Data Miner | Free Gamma Bomb Array | -6/Data Miner | Free Impulse Thruster Array | -6/Data Miner | Free Tri-rail Accelerator | -5/Factory | Hacked Hyp. Mass Driver | -5/Factory | Hacked Adv. System Restoration Module | -4/Factory | Hacked Adv. Coolant Injector | -4/Extension | Hacked Adv. Heavy Treads | -3/Research | Hacked Mic. Antimatter Reactor | -3/Research | Hacked Cld. Nuclear Pulse Thruster | -3/Research | Scanalyzed Exp. Weapon Cycler | -3/Quarantine | Hacked Hvy. Antimatter Reactor | -3/Quarantine | Archive Adv. Remote Shield | -3/Quarantine | Archive Exp. Focal Shield | -3/Quarantine | Archive Exp. Myomer Leg | -3/Quarantine | Archive Graviton Reactor | -3/Quarantine | Archive Exp. Power Amplifier | -3/Quarantine | Archive Neutron Missile Launcher | -2/Protoforge | Archive Graviton Cannon | -2/Protoforge | Archive Ionic Axe | -2/Protoforge | Archive Adv. Dynamic Insulation System | -2/Protoforge | Archive Hvy. Hardcell Cannon | -2/Protoforge | Archive Imp. Q-thruster | -2/Protoforge | Archive Hds. Centrium Leg | -2/Protoforge | Archive Adv. Micro-nuke Launcher | -2/Protoforge | Archive Plasma Sword | -2/Protoforge | Archive Exp. ECM Suite | -2/Protoforge | Archive Robot Schematics ------------------ G-50 Soldier | -6/Data Miner | Free S-27 Virus | -6/Data Miner | Free Y-54 Guardian | -6/Data Miner | Free L-41 Fighter | -6/Data Miner | Free Y-64 Sentinel | -6/Data Miner | Free R-10 Processor | -6/Data Miner | Free B-60 Warrior | -6/Data Miner | Free L-61 Swordsman | -6/Data Miner | Free K-01 Serf | -3/Quarantine | Archive O-32 Director | -3/Quarantine | Archive A-02 Transporter | -3/Quarantine | Archive T-07 Excavator | -2/Testing | Archive A-15 Conveyor | -2/Testing | Archive R-06 Scavenger | -2/Testing | Archive M-14 Sweeper | -2/Testing | Archive M-22 Extractor | -2/Testing | Archive M-30 Cleanser | -2/Testing | Archive M-13 Machinist | -2/Testing | Archive M-28 Smith | -2/Testing | Archive M-36 Artificer | -2/Testing | Archive O-16 Technician | -2/Testing | Archive O-24 Administrator | -2/Testing | Archive W-16 Scout | -2/Testing | Archive W-25 Informer | -2/Testing | Archive W-44 Eye | -2/Testing | Archive S-10 Pest | -2/Testing | Archive S-43 Plague | -2/Testing | Archive G-34 Mercenary | -2/Testing | Archive G-47 Trooper | -2/Testing | Archive G-67 Veteran | -2/Testing | Archive G-73 Enforcer | -2/Testing | Archive B-36 Bruiser | -2/Testing | Archive B-48 Gladiator | -2/Testing | Archive B-74 Champion | -2/Testing | Archive L-31 Rogue | -2/Testing | Archive Y-45 Defender | -2/Testing | Archive Y-72 Warden | -2/Testing | Archive D-53 Grenadier | -2/Testing | Archive D-63 Destroyer | -2/Testing | Archive D-83 Annihilator | -2/Testing | Archive X-57 Shotgunner | -2/Testing | Archive X-62 Marksman | -2/Testing | Archive X-67 Chaingunner | -2/Testing | Archive X-72 Disruptor | -2/Testing | Archive X-77 Beamer | -2/Testing | Archive X-82 Rainmaker | -2/Testing | Archive X-87 Electro | -2/Testing | Archive H-55 Commando | -2/Testing | Archive H-66 Slayer | -2/Testing | Archive H-77 Assassin | -2/Testing | Archive H-88 Terminator | -2/Testing | Archive P-60 Hacker | -2/Testing | Archive P-70 Sage | -2/Testing | Archive P-80 Master | -2/Testing | Archive Fabricated ------------ Tri-rail Accelerator | x1 | -5/Factory | Authchip Adv. System Restoration Module | x2 | -4/Factory | Authchip Exp. Propulsion Shielding | x1 | -4/Factory Field Propulsion Array | x1 | -4/Factory | Preloaded Tri-rail Accelerator | x1 | -4/Factory Impulse Thruster Array | x1 | -3/Research Repaired ---------- Lgt. Fission Core | 31% | -3/Research Tri-rail Accelerator | 57% | -3/Research Exp. Propulsion Shielding | 70% | -3/Research Tri-rail Accelerator | 68% | -2/Testing Tri-rail Accelerator | 69% | -2/Testing Studied --------- Hvy. Assault Rifle | -8/Materials | Hacked Rocket Launcher | -8/Materials | Hacked Hpw. Shotgun | -8/Materials | Hacked Lgt. Deuterium Engine | -7/Factory | Hacked Lgt. Fission Core | -4/Factory | Hacked Impulse Thruster Array | -3/Research | Hacked Alien Tech Used ----------------- None Achievements -------------- Hot Stuff I Like You, Cogmind I'm Outta Here, Maybe IP Theft Mistaken Identity Nice Directions, Buddy Prodigal Son Strength In Numbers Stronghold Tailor-made The Robot, The Myth, The Legend Welcome To The Revolution Well-fed Force Field Challenges ------------ None Game ------ Seed CompanionPersonalAutohacker Manual? 0 Play Time 08:32:33 Cumulative 1261.2 hours Start 2025.10.24 @ 12:10:38 End 2025.10.26 @ 17:04:50 Sessions 6 Manual Loads 0 Difficulty Rogue Special Mode None Game No. 547 Rogue 546 Adventurer 1 Explorer 0 Win Type 8 Total 201 Types 58/17/31/5/2/1/78/3/4/2 Lore% 99 Gallery% 98 Achievement% 71 Wizard Run 0 Options --------- Layout 2 ASCII 0 Keyboard 1 Movement Numpad Keybinds 0 Fullscreen 0 Font 24/Terminus Map View 50x44 Zoom Use 0% Tactical HUD 1 Map Filters NONE Filters NONE Steam 1 RUN: 71826f48-6dda-48ad-854b-85cd910fb966